{"text_format":"3","workbook":"xlsx","n_sheets":12,"sheets":["LEDEN","ÚNOR","BŘEZEN","DUBEN","KVĚTEN","ČERVEN","ČERVENEC","SRPEN","ZÁŘÍ","ŘÍJEN","LISTOPAD","PROSINEC"],"not_rendered":{"defined_names":40},"read":"whole","date_system":"1900"}

{"sheet":"LEDEN","index":0,"n_rows":20,"n_cols":9,"rows_kept":20,"merged":[[16,2,17,2],[16,3,17,3],[17,4,19,8]]}
[null,"LEDEN","NE",{"$f":"UPPER(TEXT(D3,\"aaa\"))","v":"PO"},"ÚT","ST","ČT","PÁ","SO"]
[null,{"$f":"YEAR(TODAY())","v":2018}]
[null,null,{"$f":"DnyATýdny+DATE(KalendářníRok,1,1)-WEEKDAY(DATE(KalendářníRok,1,1),(ZačátekTýdne=\"PO\")+1)+1","v":"2017-12-31"},"2018-01-01","2018-01-02","2018-01-03","2018-01-04","2018-01-05","2018-01-06"]
[null,null,{"$f":"IF(DAY(DenKalendáře)=1,CONCATENATE(\"Týden \",WEEKNUM(DenKalendáře),\"/Den \",DenKalendáře-DATE(YEAR(DenKalendáře),1,0)),CONCATENATE(\"Den \",DenKalendáře-DATE(YEAR(DenKalendáře),1,0)))","v":"Den 365"},{"$f":"IF(DAY(DenKalendáře)=1,CONCATENATE(\"Týden \",WEEKNUM(DenKalendáře),\"/Den \",DenKalendáře-DATE(YEAR(DenKalendáře),1,0)),CONCATENATE(\"Den \",DenKalendáře-DATE(YEAR(DenKalendáře),1,0)))","v":"Týden 1/Den 1"},{"$f":"IF(DAY(DenKalendáře)=1,CONCATENATE(\"Týden \",WEEKNUM(DenKalendáře),\"/Den \",DenKalendáře-DATE(YEAR(DenKalendáře),1,0)),CONCATENATE(\"Den \",DenKalendáře-DATE(YEAR(DenKalendáře),1,0)))","v":"Den 2"},{"$f":"IF(DAY(DenKalendáře)=1,CONCATENATE(\"Týden \",WEEKNUM(DenKalendáře),\"/Den \",DenKalendáře-DATE(YEAR(DenKalendáře),1,0)),CONCATENATE(\"Den \",DenKalendáře-DATE(YEAR(DenKalendáře),1,0)))","v":"Den 3"},{"$f":"IF(DAY(DenKalendáře)=1,CONCATENATE(\"Týden \",WEEKNUM(DenKalendáře),\"/Den \",DenKalendáře-DATE(YEAR(DenKalendáře),1,0)),CONCATENATE(\"Den \",DenKalendáře-DATE(YEAR(DenKalendáře),1,0)))","v":"Den 4"},{"$f":"IF(DAY(DenKalendáře)=1,CONCATENATE(\"Týden \",WEEKNUM(DenKalendáře),\"/Den \",DenKalendáře-DATE(YEAR(DenKalendáře),1,0)),CONCATENATE(\"Den \",DenKalendáře-DATE(YEAR(DenKalendáře),1,0)))","v":"Den 5"},{"$f":"IF(DAY(DenKalendáře)=1,CONCATENATE(\"Týden \",WEEKNUM(DenKalendáře),\"/Den \",DenKalendáře-DATE(YEAR(DenKalendáře),1,0)),CONCATENATE(\"Den \",DenKalendáře-DATE(YEAR(DenKalendáře),1,0)))","v":"Den 6"}]
[]
[null,null,{"$f":"DnyATýdny+DATE(KalendářníRok,1,1)-WEEKDAY(DATE(KalendářníRok,1,1),(ZačátekTýdne=\"PO\")+1)+8","v":"2018-01-07"},"2018-01-08","2018-01-09","2018-01-10","2018-01-11","2018-01-12","2018-01-13"]
[null,null,{"$f":"IF(WEEKDAY(DenKalendáře)=ZačátekTýdneHodnota,CONCATENATE(\"Týden \",WEEKNUM(DenKalendáře),\"/Den \",DenKalendáře-DATE(YEAR(DenKalendáře),1,0)),CONCATENATE(\"Den \",DenKalendáře-DATE(YEAR(DenKalendáře),1,0)))","v":"Týden 2/Den 7"},{"$f":"IF(WEEKDAY(DenKalendáře)=ZačátekTýdneHodnota,CONCATENATE(\"Týden \",WEEKNUM(DenKalendáře),\"/Den \",DenKalendáře-DATE(YEAR(DenKalendáře),1,0)),CONCATENATE(\"Den \",DenKalendáře-DATE(YEAR(DenKalendáře),1,0)))","v":"Den 8"},{"$f":"IF(WEEKDAY(DenKalendáře)=ZačátekTýdneHodnota,CONCATENATE(\"Týden \",WEEKNUM(DenKalendáře),\"/Den \",DenKalendáře-DATE(YEAR(DenKalendáře),1,0)),CONCATENATE(\"Den \",DenKalendáře-DATE(YEAR(DenKalendáře),1,0)))","v":"Den 9"},{"$f":"IF(WEEKDAY(DenKalendáře)=ZačátekTýdneHodnota,CONCATENATE(\"Týden \",WEEKNUM(DenKalendáře),\"/Den \",DenKalendáře-DATE(YEAR(DenKalendáře),1,0)),CONCATENATE(\"Den \",DenKalendáře-DATE(YEAR(DenKalendáře),1,0)))","v":"Den 10"},{"$f":"IF(WEEKDAY(DenKalendáře)=ZačátekTýdneHodnota,CONCATENATE(\"Týden \",WEEKNUM(DenKalendáře),\"/Den \",DenKalendáře-DATE(YEAR(DenKalendáře),1,0)),CONCATENATE(\"Den \",DenKalendáře-DATE(YEAR(DenKalendáře),1,0)))","v":"Den 11"},{"$f":"IF(WEEKDAY(DenKalendáře)=ZačátekTýdneHodnota,CONCATENATE(\"Týden \",WEEKNUM(DenKalendáře),\"/Den \",DenKalendáře-DATE(YEAR(DenKalendáře),1,0)),CONCATENATE(\"Den \",DenKalendáře-DATE(YEAR(DenKalendáře),1,0)))","v":"Den 12"},{"$f":"IF(WEEKDAY(DenKalendáře)=ZačátekTýdneHodnota,CONCATENATE(\"Týden \",WEEKNUM(DenKalendáře),\"/Den \",DenKalendáře-DATE(YEAR(DenKalendáře),1,0)),CONCATENATE(\"Den \",DenKalendáře-DATE(YEAR(DenKalendáře),1,0)))","v":"Den 13"}]
[]
[null,null,{"$f":"DnyATýdny+DATE(KalendářníRok,1,1)-WEEKDAY(DATE(KalendářníRok,1,1),(ZačátekTýdne=\"PO\")+1)+15","v":"2018-01-14"},"2018-01-15","2018-01-16","2018-01-17","2018-01-18","2018-01-19","2018-01-20"]
[null,null,{"$f":"IF(WEEKDAY(DenKalendáře)=ZačátekTýdneHodnota,CONCATENATE(\"Týden \",WEEKNUM(DenKalendáře),\"/Den \",DenKalendáře-DATE(YEAR(DenKalendáře),1,0)),CONCATENATE(\"Den \",DenKalendáře-DATE(YEAR(DenKalendáře),1,0)))","v":"Týden 3/Den 14"},{"$f":"IF(WEEKDAY(DenKalendáře)=ZačátekTýdneHodnota,CONCATENATE(\"Týden \",WEEKNUM(DenKalendáře),\"/Den \",DenKalendáře-DATE(YEAR(DenKalendáře),1,0)),CONCATENATE(\"Den \",DenKalendáře-DATE(YEAR(DenKalendáře),1,0)))","v":"Den 15"},{"$f":"IF(WEEKDAY(DenKalendáře)=ZačátekTýdneHodnota,CONCATENATE(\"Týden \",WEEKNUM(DenKalendáře),\"/Den \",DenKalendáře-DATE(YEAR(DenKalendáře),1,0)),CONCATENATE(\"Den \",DenKalendáře-DATE(YEAR(DenKalendáře),1,0)))","v":"Den 16"},{"$f":"IF(WEEKDAY(DenKalendáře)=ZačátekTýdneHodnota,CONCATENATE(\"Týden \",WEEKNUM(DenKalendáře),\"/Den \",DenKalendáře-DATE(YEAR(DenKalendáře),1,0)),CONCATENATE(\"Den \",DenKalendáře-DATE(YEAR(DenKalendáře),1,0)))","v":"Den 17"},{"$f":"IF(WEEKDAY(DenKalendáře)=ZačátekTýdneHodnota,CONCATENATE(\"Týden \",WEEKNUM(DenKalendáře),\"/Den \",DenKalendáře-DATE(YEAR(DenKalendáře),1,0)),CONCATENATE(\"Den \",DenKalendáře-DATE(YEAR(DenKalendáře),1,0)))","v":"Den 18"},{"$f":"IF(WEEKDAY(DenKalendáře)=ZačátekTýdneHodnota,CONCATENATE(\"Týden \",WEEKNUM(DenKalendáře),\"/Den \",DenKalendáře-DATE(YEAR(DenKalendáře),1,0)),CONCATENATE(\"Den \",DenKalendáře-DATE(YEAR(DenKalendáře),1,0)))","v":"Den 19"},{"$f":"IF(WEEKDAY(DenKalendáře)=ZačátekTýdneHodnota,CONCATENATE(\"Týden \",WEEKNUM(DenKalendáře),\"/Den \",DenKalendáře-DATE(YEAR(DenKalendáře),1,0)),CONCATENATE(\"Den \",DenKalendáře-DATE(YEAR(DenKalendáře),1,0)))","v":"Den 20"}]
[]
[null,null,{"$f":"DnyATýdny+DATE(KalendářníRok,1,1)-WEEKDAY(DATE(KalendářníRok,1,1),(ZačátekTýdne=\"PO\")+1)+22","v":"2018-01-21"},"2018-01-22","2018-01-23","2018-01-24","2018-01-25","2018-01-26","2018-01-27"]
[null,null,{"$f":"IF(WEEKDAY(DenKalendáře)=ZačátekTýdneHodnota,CONCATENATE(\"Týden \",WEEKNUM(DenKalendáře),\"/Den \",DenKalendáře-DATE(YEAR(DenKalendáře),1,0)),CONCATENATE(\"Den \",DenKalendáře-DATE(YEAR(DenKalendáře),1,0)))","v":"Týden 4/Den 21"},{"$f":"IF(WEEKDAY(DenKalendáře)=ZačátekTýdneHodnota,CONCATENATE(\"Týden \",WEEKNUM(DenKalendáře),\"/Den \",DenKalendáře-DATE(YEAR(DenKalendáře),1,0)),CONCATENATE(\"Den \",DenKalendáře-DATE(YEAR(DenKalendáře),1,0)))","v":"Den 22"},{"$f":"IF(WEEKDAY(DenKalendáře)=ZačátekTýdneHodnota,CONCATENATE(\"Týden \",WEEKNUM(DenKalendáře),\"/Den \",DenKalendáře-DATE(YEAR(DenKalendáře),1,0)),CONCATENATE(\"Den \",DenKalendáře-DATE(YEAR(DenKalendáře),1,0)))","v":"Den 23"},{"$f":"IF(WEEKDAY(DenKalendáře)=ZačátekTýdneHodnota,CONCATENATE(\"Týden \",WEEKNUM(DenKalendáře),\"/Den \",DenKalendáře-DATE(YEAR(DenKalendáře),1,0)),CONCATENATE(\"Den \",DenKalendáře-DATE(YEAR(DenKalendáře),1,0)))","v":"Den 24"},{"$f":"IF(WEEKDAY(DenKalendáře)=ZačátekTýdneHodnota,CONCATENATE(\"Týden \",WEEKNUM(DenKalendáře),\"/Den \",DenKalendáře-DATE(YEAR(DenKalendáře),1,0)),CONCATENATE(\"Den \",DenKalendáře-DATE(YEAR(DenKalendáře),1,0)))","v":"Den 25"},{"$f":"IF(WEEKDAY(DenKalendáře)=ZačátekTýdneHodnota,CONCATENATE(\"Týden \",WEEKNUM(DenKalendáře),\"/Den \",DenKalendáře-DATE(YEAR(DenKalendáře),1,0)),CONCATENATE(\"Den \",DenKalendáře-DATE(YEAR(DenKalendáře),1,0)))","v":"Den 26"},{"$f":"IF(WEEKDAY(DenKalendáře)=ZačátekTýdneHodnota,CONCATENATE(\"Týden \",WEEKNUM(DenKalendáře),\"/Den \",DenKalendáře-DATE(YEAR(DenKalendáře),1,0)),CONCATENATE(\"Den \",DenKalendáře-DATE(YEAR(DenKalendáře),1,0)))","v":"Den 27"}]
[]
[null,null,{"$f":"DnyATýdny+DATE(KalendářníRok,1,1)-WEEKDAY(DATE(KalendářníRok,1,1),(ZačátekTýdne=\"PO\")+1)+29","v":"2018-01-28"},"2018-01-29","2018-01-30","2018-01-31","2018-02-01","2018-02-02","2018-02-03"]
[null,null,{"$f":"IF(WEEKDAY(DenKalendáře)=ZačátekTýdneHodnota,CONCATENATE(\"Týden \",WEEKNUM(DenKalendáře),\"/Den \",DenKalendáře-DATE(YEAR(DenKalendáře),1,0)),CONCATENATE(\"Den \",DenKalendáře-DATE(YEAR(DenKalendáře),1,0)))","v":"Týden 5/Den 28"},{"$f":"IF(WEEKDAY(DenKalendáře)=ZačátekTýdneHodnota,CONCATENATE(\"Týden \",WEEKNUM(DenKalendáře),\"/Den \",DenKalendáře-DATE(YEAR(DenKalendáře),1,0)),CONCATENATE(\"Den \",DenKalendáře-DATE(YEAR(DenKalendáře),1,0)))","v":"Den 29"},{"$f":"IF(WEEKDAY(DenKalendáře)=ZačátekTýdneHodnota,CONCATENATE(\"Týden \",WEEKNUM(DenKalendáře),\"/Den \",DenKalendáře-DATE(YEAR(DenKalendáře),1,0)),CONCATENATE(\"Den \",DenKalendáře-DATE(YEAR(DenKalendáře),1,0)))","v":"Den 30"},{"$f":"IF(WEEKDAY(DenKalendáře)=ZačátekTýdneHodnota,CONCATENATE(\"Týden \",WEEKNUM(DenKalendáře),\"/Den \",DenKalendáře-DATE(YEAR(DenKalendáře),1,0)),CONCATENATE(\"Den \",DenKalendáře-DATE(YEAR(DenKalendáře),1,0)))","v":"Den 31"},{"$f":"IF(WEEKDAY(DenKalendáře)=ZačátekTýdneHodnota,CONCATENATE(\"Týden \",WEEKNUM(DenKalendáře),\"/Den \",DenKalendáře-DATE(YEAR(DenKalendáře),1,0)),CONCATENATE(\"Den \",DenKalendáře-DATE(YEAR(DenKalendáře),1,0)))","v":"Den 32"},{"$f":"IF(WEEKDAY(DenKalendáře)=ZačátekTýdneHodnota,CONCATENATE(\"Týden \",WEEKNUM(DenKalendáře),\"/Den \",DenKalendáře-DATE(YEAR(DenKalendáře),1,0)),CONCATENATE(\"Den \",DenKalendáře-DATE(YEAR(DenKalendáře),1,0)))","v":"Den 33"},{"$f":"IF(WEEKDAY(DenKalendáře)=ZačátekTýdneHodnota,CONCATENATE(\"Týden \",WEEKNUM(DenKalendáře),\"/Den \",DenKalendáře-DATE(YEAR(DenKalendáře),1,0)),CONCATENATE(\"Den \",DenKalendáře-DATE(YEAR(DenKalendáře),1,0)))","v":"Den 34"}]
[{"$nulls":4},"POZNÁMKY"]
[]
[null,null,{"$f":"DnyATýdny+DATE(KalendářníRok,1,1)-WEEKDAY(DATE(KalendářníRok,1,1),(ZačátekTýdne=\"PO\")+1)+36","v":"2018-02-04"},"2018-02-05"]
[null,null,{"$f":"IF(WEEKDAY(DenKalendáře)=ZačátekTýdneHodnota,CONCATENATE(\"Týden \",WEEKNUM(DenKalendáře),\"/Den \",DenKalendáře-DATE(YEAR(DenKalendáře),1,0)),CONCATENATE(\"Den \",DenKalendáře-DATE(YEAR(DenKalendáře),1,0)))","v":"Týden 6/Den 35"},{"$f":"IF(WEEKDAY(DenKalendáře)=ZačátekTýdneHodnota,CONCATENATE(\"Týden \",WEEKNUM(DenKalendáře),\"/Den \",DenKalendáře-DATE(YEAR(DenKalendáře),1,0)),CONCATENATE(\"Den \",DenKalendáře-DATE(YEAR(DenKalendáře),1,0)))","v":"Den 36"}]

{"sheet":"ÚNOR","index":1,"n_rows":20,"n_cols":9,"rows_kept":20,"merged":[[16,2,17,2],[17,4,19,8]]}
[null,"ÚNOR",{"$f":"UPPER(TEXT(ZačátekTýdne,\"ddd\"))","v":"NE"},{"$f":"UPPER(TEXT(D3,\"aaa\"))","v":"PO"},"ÚT","ST","ČT","PÁ","SO"]
[null,{"$f":"KalendářníRok","v":2018}]
[null,null,{"$f":"DnyATýdny+DATE(KalendářníRok,2,1)-WEEKDAY(DATE(KalendářníRok,2,1),(ZačátekTýdne=\"PO\")+1)+1","v":"2018-01-28"},"2018-01-29","2018-01-30","2018-01-31","2018-02-01","2018-02-02","2018-02-03"]
[null,null,{"$f":"IF(DAY(DenKalendáře)=1,CONCATENATE(\"Týden \",WEEKNUM(DenKalendáře),\"/Den \",DenKalendáře-DATE(YEAR(DenKalendáře),1,0)),CONCATENATE(\"Den \",DenKalendáře-DATE(YEAR(DenKalendáře),1,0)))","v":"Den 28"},{"$f":"IF(DAY(DenKalendáře)=1,CONCATENATE(\"Týden \",WEEKNUM(DenKalendáře),\"/Den \",DenKalendáře-DATE(YEAR(DenKalendáře),1,0)),CONCATENATE(\"Den \",DenKalendáře-DATE(YEAR(DenKalendáře),1,0)))","v":"Den 29"},{"$f":"IF(DAY(DenKalendáře)=1,CONCATENATE(\"Týden \",WEEKNUM(DenKalendáře),\"/Den \",DenKalendáře-DATE(YEAR(DenKalendáře),1,0)),CONCATENATE(\"Den \",DenKalendáře-DATE(YEAR(DenKalendáře),1,0)))","v":"Den 30"},{"$f":"IF(DAY(DenKalendáře)=1,CONCATENATE(\"Týden \",WEEKNUM(DenKalendáře),\"/Den \",DenKalendáře-DATE(YEAR(DenKalendáře),1,0)),CONCATENATE(\"Den \",DenKalendáře-DATE(YEAR(DenKalendáře),1,0)))","v":"Den 31"},{"$f":"IF(DAY(DenKalendáře)=1,CONCATENATE(\"Týden \",WEEKNUM(DenKalendáře),\"/Den \",DenKalendáře-DATE(YEAR(DenKalendáře),1,0)),CONCATENATE(\"Den \",DenKalendáře-DATE(YEAR(DenKalendáře),1,0)))","v":"Týden 5/Den 32"},{"$f":"IF(DAY(DenKalendáře)=1,CONCATENATE(\"Týden \",WEEKNUM(DenKalendáře),\"/Den \",DenKalendáře-DATE(YEAR(DenKalendáře),1,0)),CONCATENATE(\"Den \",DenKalendáře-DATE(YEAR(DenKalendáře),1,0)))","v":"Den 33"},{"$f":"IF(DAY(DenKalendáře)=1,CONCATENATE(\"Týden \",WEEKNUM(DenKalendáře),\"/Den \",DenKalendáře-DATE(YEAR(DenKalendáře),1,0)),CONCATENATE(\"Den \",DenKalendáře-DATE(YEAR(DenKalendáře),1,0)))","v":"Den 34"}]
[]
[null,null,{"$f":"DnyATýdny+DATE(KalendářníRok,2,1)-WEEKDAY(DATE(KalendářníRok,2,1),(ZačátekTýdne=\"PO\")+1)+8","v":"2018-02-04"},"2018-02-05","2018-02-06","2018-02-07","2018-02-08","2018-02-09","2018-02-10"]
[null,null,{"$f":"IF(WEEKDAY(DenKalendáře)=ZačátekTýdneHodnota,CONCATENATE(\"Týden \",WEEKNUM(DenKalendáře),\"/Den \",DenKalendáře-DATE(YEAR(DenKalendáře),1,0)),CONCATENATE(\"Den \",DenKalendáře-DATE(YEAR(DenKalendáře),1,0)))","v":"Týden 6/Den 35"},{"$f":"IF(WEEKDAY(DenKalendáře)=ZačátekTýdneHodnota,CONCATENATE(\"Týden \",WEEKNUM(DenKalendáře),\"/Den \",DenKalendáře-DATE(YEAR(DenKalendáře),1,0)),CONCATENATE(\"Den \",DenKalendáře-DATE(YEAR(DenKalendáře),1,0)))","v":"Den 36"},{"$f":"IF(WEEKDAY(DenKalendáře)=ZačátekTýdneHodnota,CONCATENATE(\"Týden \",WEEKNUM(DenKalendáře),\"/Den \",DenKalendáře-DATE(YEAR(DenKalendáře),1,0)),CONCATENATE(\"Den \",DenKalendáře-DATE(YEAR(DenKalendáře),1,0)))","v":"Den 37"},{"$f":"IF(WEEKDAY(DenKalendáře)=ZačátekTýdneHodnota,CONCATENATE(\"Týden \",WEEKNUM(DenKalendáře),\"/Den \",DenKalendáře-DATE(YEAR(DenKalendáře),1,0)),CONCATENATE(\"Den \",DenKalendáře-DATE(YEAR(DenKalendáře),1,0)))","v":"Den 38"},{"$f":"IF(WEEKDAY(DenKalendáře)=ZačátekTýdneHodnota,CONCATENATE(\"Týden \",WEEKNUM(DenKalendáře),\"/Den \",DenKalendáře-DATE(YEAR(DenKalendáře),1,0)),CONCATENATE(\"Den \",DenKalendáře-DATE(YEAR(DenKalendáře),1,0)))","v":"Den 39"},{"$f":"IF(WEEKDAY(DenKalendáře)=ZačátekTýdneHodnota,CONCATENATE(\"Týden \",WEEKNUM(DenKalendáře),\"/Den \",DenKalendáře-DATE(YEAR(DenKalendáře),1,0)),CONCATENATE(\"Den \",DenKalendáře-DATE(YEAR(DenKalendáře),1,0)))","v":"Den 40"},{"$f":"IF(WEEKDAY(DenKalendáře)=ZačátekTýdneHodnota,CONCATENATE(\"Týden \",WEEKNUM(DenKalendáře),\"/Den \",DenKalendáře-DATE(YEAR(DenKalendáře),1,0)),CONCATENATE(\"Den \",DenKalendáře-DATE(YEAR(DenKalendáře),1,0)))","v":"Den 41"}]
[]
[null,null,{"$f":"DnyATýdny+DATE(KalendářníRok,2,1)-WEEKDAY(DATE(KalendářníRok,2,1),(ZačátekTýdne=\"PO\")+1)+15","v":"2018-02-11"},"2018-02-12","2018-02-13","2018-02-14","2018-02-15","2018-02-16","2018-02-17"]
[null,null,{"$f":"IF(WEEKDAY(DenKalendáře)=ZačátekTýdneHodnota,CONCATENATE(\"Týden \",WEEKNUM(DenKalendáře),\"/Den \",DenKalendáře-DATE(YEAR(DenKalendáře),1,0)),CONCATENATE(\"Den \",DenKalendáře-DATE(YEAR(DenKalendáře),1,0)))","v":"Týden 7/Den 42"},{"$f":"IF(WEEKDAY(DenKalendáře)=ZačátekTýdneHodnota,CONCATENATE(\"Týden \",WEEKNUM(DenKalendáře),\"/Den \",DenKalendáře-DATE(YEAR(DenKalendáře),1,0)),CONCATENATE(\"Den \",DenKalendáře-DATE(YEAR(DenKalendáře),1,0)))","v":"Den 43"},{"$f":"IF(WEEKDAY(DenKalendáře)=ZačátekTýdneHodnota,CONCATENATE(\"Týden \",WEEKNUM(DenKalendáře),\"/Den \",DenKalendáře-DATE(YEAR(DenKalendáře),1,0)),CONCATENATE(\"Den \",DenKalendáře-DATE(YEAR(DenKalendáře),1,0)))","v":"Den 44"},{"$f":"IF(WEEKDAY(DenKalendáře)=ZačátekTýdneHodnota,CONCATENATE(\"Týden \",WEEKNUM(DenKalendáře),\"/Den \",DenKalendáře-DATE(YEAR(DenKalendáře),1,0)),CONCATENATE(\"Den \",DenKalendáře-DATE(YEAR(DenKalendáře),1,0)))","v":"Den 45"},{"$f":"IF(WEEKDAY(DenKalendáře)=ZačátekTýdneHodnota,CONCATENATE(\"Týden \",WEEKNUM(DenKalendáře),\"/Den \",DenKalendáře-DATE(YEAR(DenKalendáře),1,0)),CONCATENATE(\"Den \",DenKalendáře-DATE(YEAR(DenKalendáře),1,0)))","v":"Den 46"},{"$f":"IF(WEEKDAY(DenKalendáře)=ZačátekTýdneHodnota,CONCATENATE(\"Týden \",WEEKNUM(DenKalendáře),\"/Den \",DenKalendáře-DATE(YEAR(DenKalendáře),1,0)),CONCATENATE(\"Den \",DenKalendáře-DATE(YEAR(DenKalendáře),1,0)))","v":"Den 47"},{"$f":"IF(WEEKDAY(DenKalendáře)=ZačátekTýdneHodnota,CONCATENATE(\"Týden \",WEEKNUM(DenKalendáře),\"/Den \",DenKalendáře-DATE(YEAR(DenKalendáře),1,0)),CONCATENATE(\"Den \",DenKalendáře-DATE(YEAR(DenKalendáře),1,0)))","v":"Den 48"}]
[]
[null,null,{"$f":"DnyATýdny+DATE(KalendářníRok,2,1)-WEEKDAY(DATE(KalendářníRok,2,1),(ZačátekTýdne=\"PO\")+1)+22","v":"2018-02-18"},"2018-02-19","2018-02-20","2018-02-21","2018-02-22","2018-02-23","2018-02-24"]
[null,null,{"$f":"IF(WEEKDAY(DenKalendáře)=ZačátekTýdneHodnota,CONCATENATE(\"Týden \",WEEKNUM(DenKalendáře),\"/Den \",DenKalendáře-DATE(YEAR(DenKalendáře),1,0)),CONCATENATE(\"Den \",DenKalendáře-DATE(YEAR(DenKalendáře),1,0)))","v":"Týden 8/Den 49"},{"$f":"IF(WEEKDAY(DenKalendáře)=ZačátekTýdneHodnota,CONCATENATE(\"Týden \",WEEKNUM(DenKalendáře),\"/Den \",DenKalendáře-DATE(YEAR(DenKalendáře),1,0)),CONCATENATE(\"Den \",DenKalendáře-DATE(YEAR(DenKalendáře),1,0)))","v":"Den 50"},{"$f":"IF(WEEKDAY(DenKalendáře)=ZačátekTýdneHodnota,CONCATENATE(\"Týden \",WEEKNUM(DenKalendáře),\"/Den \",DenKalendáře-DATE(YEAR(DenKalendáře),1,0)),CONCATENATE(\"Den \",DenKalendáře-DATE(YEAR(DenKalendáře),1,0)))","v":"Den 51"},{"$f":"IF(WEEKDAY(DenKalendáře)=ZačátekTýdneHodnota,CONCATENATE(\"Týden \",WEEKNUM(DenKalendáře),\"/Den \",DenKalendáře-DATE(YEAR(DenKalendáře),1,0)),CONCATENATE(\"Den \",DenKalendáře-DATE(YEAR(DenKalendáře),1,0)))","v":"Den 52"},{"$f":"IF(WEEKDAY(DenKalendáře)=ZačátekTýdneHodnota,CONCATENATE(\"Týden \",WEEKNUM(DenKalendáře),\"/Den \",DenKalendáře-DATE(YEAR(DenKalendáře),1,0)),CONCATENATE(\"Den \",DenKalendáře-DATE(YEAR(DenKalendáře),1,0)))","v":"Den 53"},{"$f":"IF(WEEKDAY(DenKalendáře)=ZačátekTýdneHodnota,CONCATENATE(\"Týden \",WEEKNUM(DenKalendáře),\"/Den \",DenKalendáře-DATE(YEAR(DenKalendáře),1,0)),CONCATENATE(\"Den \",DenKalendáře-DATE(YEAR(DenKalendáře),1,0)))","v":"Den 54"},{"$f":"IF(WEEKDAY(DenKalendáře)=ZačátekTýdneHodnota,CONCATENATE(\"Týden \",WEEKNUM(DenKalendáře),\"/Den \",DenKalendáře-DATE(YEAR(DenKalendáře),1,0)),CONCATENATE(\"Den \",DenKalendáře-DATE(YEAR(DenKalendáře),1,0)))","v":"Den 55"}]
[]
[null,null,{"$f":"DnyATýdny+DATE(KalendářníRok,2,1)-WEEKDAY(DATE(KalendářníRok,2,1),(ZačátekTýdne=\"PO\")+1)+29","v":"2018-02-25"},"2018-02-26","2018-02-27","2018-02-28","2018-03-01","2018-03-02","2018-03-03"]
[null,null,{"$f":"IF(WEEKDAY(DenKalendáře)=ZačátekTýdneHodnota,CONCATENATE(\"Týden \",WEEKNUM(DenKalendáře),\"/Den \",DenKalendáře-DATE(YEAR(DenKalendáře),1,0)),CONCATENATE(\"Den \",DenKalendáře-DATE(YEAR(DenKalendáře),1,0)))","v":"Týden 9/Den 56"},{"$f":"IF(WEEKDAY(DenKalendáře)=ZačátekTýdneHodnota,CONCATENATE(\"Týden \",WEEKNUM(DenKalendáře),\"/Den \",DenKalendáře-DATE(YEAR(DenKalendáře),1,0)),CONCATENATE(\"Den \",DenKalendáře-DATE(YEAR(DenKalendáře),1,0)))","v":"Den 57"},{"$f":"IF(WEEKDAY(DenKalendáře)=ZačátekTýdneHodnota,CONCATENATE(\"Týden \",WEEKNUM(DenKalendáře),\"/Den \",DenKalendáře-DATE(YEAR(DenKalendáře),1,0)),CONCATENATE(\"Den \",DenKalendáře-DATE(YEAR(DenKalendáře),1,0)))","v":"Den 58"},{"$f":"IF(WEEKDAY(DenKalendáře)=ZačátekTýdneHodnota,CONCATENATE(\"Týden \",WEEKNUM(DenKalendáře),\"/Den \",DenKalendáře-DATE(YEAR(DenKalendáře),1,0)),CONCATENATE(\"Den \",DenKalendáře-DATE(YEAR(DenKalendáře),1,0)))","v":"Den 59"},{"$f":"IF(WEEKDAY(DenKalendáře)=ZačátekTýdneHodnota,CONCATENATE(\"Týden \",WEEKNUM(DenKalendáře),\"/Den \",DenKalendáře-DATE(YEAR(DenKalendáře),1,0)),CONCATENATE(\"Den \",DenKalendáře-DATE(YEAR(DenKalendáře),1,0)))","v":"Den 60"},{"$f":"IF(WEEKDAY(DenKalendáře)=ZačátekTýdneHodnota,CONCATENATE(\"Týden \",WEEKNUM(DenKalendáře),\"/Den \",DenKalendáře-DATE(YEAR(DenKalendáře),1,0)),CONCATENATE(\"Den \",DenKalendáře-DATE(YEAR(DenKalendáře),1,0)))","v":"Den 61"},{"$f":"IF(WEEKDAY(DenKalendáře)=ZačátekTýdneHodnota,CONCATENATE(\"Týden \",WEEKNUM(DenKalendáře),\"/Den \",DenKalendáře-DATE(YEAR(DenKalendáře),1,0)),CONCATENATE(\"Den \",DenKalendáře-DATE(YEAR(DenKalendáře),1,0)))","v":"Den 62"}]
[{"$nulls":4},"POZNÁMKY"]
[]
[null,null,{"$f":"DnyATýdny+DATE(KalendářníRok,2,1)-WEEKDAY(DATE(KalendářníRok,2,1),(ZačátekTýdne=\"PO\")+1)+36","v":"2018-03-04"},"2018-03-05"]
[null,null,{"$f":"IF(WEEKDAY(DenKalendáře)=ZačátekTýdneHodnota,CONCATENATE(\"Týden \",WEEKNUM(DenKalendáře),\"/Den \",DenKalendáře-DATE(YEAR(DenKalendáře),1,0)),CONCATENATE(\"Den \",DenKalendáře-DATE(YEAR(DenKalendáře),1,0)))","v":"Týden 10/Den 63"},{"$f":"IF(WEEKDAY(DenKalendáře)=ZačátekTýdneHodnota,CONCATENATE(\"Týden \",WEEKNUM(DenKalendáře),\"/Den \",DenKalendáře-DATE(YEAR(DenKalendáře),1,0)),CONCATENATE(\"Den \",DenKalendáře-DATE(YEAR(DenKalendáře),1,0)))","v":"Den 64"}]

{"sheet":"BŘEZEN","index":2,"n_rows":20,"n_cols":9,"rows_kept":20,"merged":[[16,2,17,2],[17,4,19,8]]}
[null,"BŘEZEN",{"$f":"UPPER(TEXT(ZačátekTýdne,\"ddd\"))","v":"NE"},{"$f":"UPPER(TEXT(D3,\"aaa\"))","v":"PO"},"ÚT","ST","ČT","PÁ","SO"]
[null,{"$f":"KalendářníRok","v":2018}]
[null,null,{"$f":"DnyATýdny+DATE(KalendářníRok,3,1)-WEEKDAY(DATE(KalendářníRok,3,1),(ZačátekTýdne=\"PO\")+1)+1","v":"2018-02-25"},"2018-02-26","2018-02-27","2018-02-28","2018-03-01","2018-03-02","2018-03-03"]
[null,null,{"$f":"IF(DAY(DenKalendáře)=1,CONCATENATE(\"Týden \",WEEKNUM(DenKalendáře),\"/Den \",DenKalendáře-DATE(YEAR(DenKalendáře),1,0)),CONCATENATE(\"Den \",DenKalendáře-DATE(YEAR(DenKalendáře),1,0)))","v":"Den 56"},{"$f":"IF(DAY(DenKalendáře)=1,CONCATENATE(\"Týden \",WEEKNUM(DenKalendáře),\"/Den \",DenKalendáře-DATE(YEAR(DenKalendáře),1,0)),CONCATENATE(\"Den \",DenKalendáře-DATE(YEAR(DenKalendáře),1,0)))","v":"Den 57"},{"$f":"IF(DAY(DenKalendáře)=1,CONCATENATE(\"Týden \",WEEKNUM(DenKalendáře),\"/Den \",DenKalendáře-DATE(YEAR(DenKalendáře),1,0)),CONCATENATE(\"Den \",DenKalendáře-DATE(YEAR(DenKalendáře),1,0)))","v":"Den 58"},{"$f":"IF(DAY(DenKalendáře)=1,CONCATENATE(\"Týden \",WEEKNUM(DenKalendáře),\"/Den \",DenKalendáře-DATE(YEAR(DenKalendáře),1,0)),CONCATENATE(\"Den \",DenKalendáře-DATE(YEAR(DenKalendáře),1,0)))","v":"Den 59"},{"$f":"IF(DAY(DenKalendáře)=1,CONCATENATE(\"Týden \",WEEKNUM(DenKalendáře),\"/Den \",DenKalendáře-DATE(YEAR(DenKalendáře),1,0)),CONCATENATE(\"Den \",DenKalendáře-DATE(YEAR(DenKalendáře),1,0)))","v":"Týden 9/Den 60"},{"$f":"IF(DAY(DenKalendáře)=1,CONCATENATE(\"Týden \",WEEKNUM(DenKalendáře),\"/Den \",DenKalendáře-DATE(YEAR(DenKalendáře),1,0)),CONCATENATE(\"Den \",DenKalendáře-DATE(YEAR(DenKalendáře),1,0)))","v":"Den 61"},{"$f":"IF(DAY(DenKalendáře)=1,CONCATENATE(\"Týden \",WEEKNUM(DenKalendáře),\"/Den \",DenKalendáře-DATE(YEAR(DenKalendáře),1,0)),CONCATENATE(\"Den \",DenKalendáře-DATE(YEAR(DenKalendáře),1,0)))","v":"Den 62"}]
[]
[null,null,{"$f":"DnyATýdny+DATE(KalendářníRok,3,1)-WEEKDAY(DATE(KalendářníRok,3,1),(ZačátekTýdne=\"PO\")+1)+8","v":"2018-03-04"},"2018-03-05","2018-03-06","2018-03-07","2018-03-08","2018-03-09","2018-03-10"]
[null,null,{"$f":"IF(WEEKDAY(DenKalendáře)=ZačátekTýdneHodnota,CONCATENATE(\"Týden \",WEEKNUM(DenKalendáře),\"/Den \",DenKalendáře-DATE(YEAR(DenKalendáře),1,0)),CONCATENATE(\"Den \",DenKalendáře-DATE(YEAR(DenKalendáře),1,0)))","v":"Týden 10/Den 63"},{"$f":"IF(WEEKDAY(DenKalendáře)=ZačátekTýdneHodnota,CONCATENATE(\"Týden \",WEEKNUM(DenKalendáře),\"/Den \",DenKalendáře-DATE(YEAR(DenKalendáře),1,0)),CONCATENATE(\"Den \",DenKalendáře-DATE(YEAR(DenKalendáře),1,0)))","v":"Den 64"},{"$f":"IF(WEEKDAY(DenKalendáře)=ZačátekTýdneHodnota,CONCATENATE(\"Týden \",WEEKNUM(DenKalendáře),\"/Den \",DenKalendáře-DATE(YEAR(DenKalendáře),1,0)),CONCATENATE(\"Den \",DenKalendáře-DATE(YEAR(DenKalendáře),1,0)))","v":"Den 65"},{"$f":"IF(WEEKDAY(DenKalendáře)=ZačátekTýdneHodnota,CONCATENATE(\"Týden \",WEEKNUM(DenKalendáře),\"/Den \",DenKalendáře-DATE(YEAR(DenKalendáře),1,0)),CONCATENATE(\"Den \",DenKalendáře-DATE(YEAR(DenKalendáře),1,0)))","v":"Den 66"},{"$f":"IF(WEEKDAY(DenKalendáře)=ZačátekTýdneHodnota,CONCATENATE(\"Týden \",WEEKNUM(DenKalendáře),\"/Den \",DenKalendáře-DATE(YEAR(DenKalendáře),1,0)),CONCATENATE(\"Den \",DenKalendáře-DATE(YEAR(DenKalendáře),1,0)))","v":"Den 67"},{"$f":"IF(WEEKDAY(DenKalendáře)=ZačátekTýdneHodnota,CONCATENATE(\"Týden \",WEEKNUM(DenKalendáře),\"/Den \",DenKalendáře-DATE(YEAR(DenKalendáře),1,0)),CONCATENATE(\"Den \",DenKalendáře-DATE(YEAR(DenKalendáře),1,0)))","v":"Den 68"},{"$f":"IF(WEEKDAY(DenKalendáře)=ZačátekTýdneHodnota,CONCATENATE(\"Týden \",WEEKNUM(DenKalendáře),\"/Den \",DenKalendáře-DATE(YEAR(DenKalendáře),1,0)),CONCATENATE(\"Den \",DenKalendáře-DATE(YEAR(DenKalendáře),1,0)))","v":"Den 69"}]
[]
[null,null,{"$f":"DnyATýdny+DATE(KalendářníRok,3,1)-WEEKDAY(DATE(KalendářníRok,3,1),(ZačátekTýdne=\"PO\")+1)+15","v":"2018-03-11"},"2018-03-12","2018-03-13","2018-03-14","2018-03-15","2018-03-16","2018-03-17"]
[null,null,{"$f":"IF(WEEKDAY(DenKalendáře)=ZačátekTýdneHodnota,CONCATENATE(\"Týden \",WEEKNUM(DenKalendáře),\"/Den \",DenKalendáře-DATE(YEAR(DenKalendáře),1,0)),CONCATENATE(\"Den \",DenKalendáře-DATE(YEAR(DenKalendáře),1,0)))","v":"Týden 11/Den 70"},{"$f":"IF(WEEKDAY(DenKalendáře)=ZačátekTýdneHodnota,CONCATENATE(\"Týden \",WEEKNUM(DenKalendáře),\"/Den \",DenKalendáře-DATE(YEAR(DenKalendáře),1,0)),CONCATENATE(\"Den \",DenKalendáře-DATE(YEAR(DenKalendáře),1,0)))","v":"Den 71"},{"$f":"IF(WEEKDAY(DenKalendáře)=ZačátekTýdneHodnota,CONCATENATE(\"Týden \",WEEKNUM(DenKalendáře),\"/Den \",DenKalendáře-DATE(YEAR(DenKalendáře),1,0)),CONCATENATE(\"Den \",DenKalendáře-DATE(YEAR(DenKalendáře),1,0)))","v":"Den 72"},{"$f":"IF(WEEKDAY(DenKalendáře)=ZačátekTýdneHodnota,CONCATENATE(\"Týden \",WEEKNUM(DenKalendáře),\"/Den \",DenKalendáře-DATE(YEAR(DenKalendáře),1,0)),CONCATENATE(\"Den \",DenKalendáře-DATE(YEAR(DenKalendáře),1,0)))","v":"Den 73"},{"$f":"IF(WEEKDAY(DenKalendáře)=ZačátekTýdneHodnota,CONCATENATE(\"Týden \",WEEKNUM(DenKalendáře),\"/Den \",DenKalendáře-DATE(YEAR(DenKalendáře),1,0)),CONCATENATE(\"Den \",DenKalendáře-DATE(YEAR(DenKalendáře),1,0)))","v":"Den 74"},{"$f":"IF(WEEKDAY(DenKalendáře)=ZačátekTýdneHodnota,CONCATENATE(\"Týden \",WEEKNUM(DenKalendáře),\"/Den \",DenKalendáře-DATE(YEAR(DenKalendáře),1,0)),CONCATENATE(\"Den \",DenKalendáře-DATE(YEAR(DenKalendáře),1,0)))","v":"Den 75"},{"$f":"IF(WEEKDAY(DenKalendáře)=ZačátekTýdneHodnota,CONCATENATE(\"Týden \",WEEKNUM(DenKalendáře),\"/Den \",DenKalendáře-DATE(YEAR(DenKalendáře),1,0)),CONCATENATE(\"Den \",DenKalendáře-DATE(YEAR(DenKalendáře),1,0)))","v":"Den 76"}]
[]
[null,null,{"$f":"DnyATýdny+DATE(KalendářníRok,3,1)-WEEKDAY(DATE(KalendářníRok,3,1),(ZačátekTýdne=\"PO\")+1)+22","v":"2018-03-18"},"2018-03-19","2018-03-20","2018-03-21","2018-03-22","2018-03-23","2018-03-24"]
[null,null,{"$f":"IF(WEEKDAY(DenKalendáře)=ZačátekTýdneHodnota,CONCATENATE(\"Týden \",WEEKNUM(DenKalendáře),\"/Den \",DenKalendáře-DATE(YEAR(DenKalendáře),1,0)),CONCATENATE(\"Den \",DenKalendáře-DATE(YEAR(DenKalendáře),1,0)))","v":"Týden 12/Den 77"},{"$f":"IF(WEEKDAY(DenKalendáře)=ZačátekTýdneHodnota,CONCATENATE(\"Týden \",WEEKNUM(DenKalendáře),\"/Den \",DenKalendáře-DATE(YEAR(DenKalendáře),1,0)),CONCATENATE(\"Den \",DenKalendáře-DATE(YEAR(DenKalendáře),1,0)))","v":"Den 78"},{"$f":"IF(WEEKDAY(DenKalendáře)=ZačátekTýdneHodnota,CONCATENATE(\"Týden \",WEEKNUM(DenKalendáře),\"/Den \",DenKalendáře-DATE(YEAR(DenKalendáře),1,0)),CONCATENATE(\"Den \",DenKalendáře-DATE(YEAR(DenKalendáře),1,0)))","v":"Den 79"},{"$f":"IF(WEEKDAY(DenKalendáře)=ZačátekTýdneHodnota,CONCATENATE(\"Týden \",WEEKNUM(DenKalendáře),\"/Den \",DenKalendáře-DATE(YEAR(DenKalendáře),1,0)),CONCATENATE(\"Den \",DenKalendáře-DATE(YEAR(DenKalendáře),1,0)))","v":"Den 80"},{"$f":"IF(WEEKDAY(DenKalendáře)=ZačátekTýdneHodnota,CONCATENATE(\"Týden \",WEEKNUM(DenKalendáře),\"/Den \",DenKalendáře-DATE(YEAR(DenKalendáře),1,0)),CONCATENATE(\"Den \",DenKalendáře-DATE(YEAR(DenKalendáře),1,0)))","v":"Den 81"},{"$f":"IF(WEEKDAY(DenKalendáře)=ZačátekTýdneHodnota,CONCATENATE(\"Týden \",WEEKNUM(DenKalendáře),\"/Den \",DenKalendáře-DATE(YEAR(DenKalendáře),1,0)),CONCATENATE(\"Den \",DenKalendáře-DATE(YEAR(DenKalendáře),1,0)))","v":"Den 82"},{"$f":"IF(WEEKDAY(DenKalendáře)=ZačátekTýdneHodnota,CONCATENATE(\"Týden \",WEEKNUM(DenKalendáře),\"/Den \",DenKalendáře-DATE(YEAR(DenKalendáře),1,0)),CONCATENATE(\"Den \",DenKalendáře-DATE(YEAR(DenKalendáře),1,0)))","v":"Den 83"}]
[]
[null,null,{"$f":"DnyATýdny+DATE(KalendářníRok,3,1)-WEEKDAY(DATE(KalendářníRok,3,1),(ZačátekTýdne=\"PO\")+1)+29","v":"2018-03-25"},"2018-03-26","2018-03-27","2018-03-28","2018-03-29","2018-03-30","2018-03-31"]
[null,null,{"$f":"IF(WEEKDAY(DenKalendáře)=ZačátekTýdneHodnota,CONCATENATE(\"Týden \",WEEKNUM(DenKalendáře),\"/Den \",DenKalendáře-DATE(YEAR(DenKalendáře),1,0)),CONCATENATE(\"Den \",DenKalendáře-DATE(YEAR(DenKalendáře),1,0)))","v":"Týden 13/Den 84"},{"$f":"IF(WEEKDAY(DenKalendáře)=ZačátekTýdneHodnota,CONCATENATE(\"Týden \",WEEKNUM(DenKalendáře),\"/Den \",DenKalendáře-DATE(YEAR(DenKalendáře),1,0)),CONCATENATE(\"Den \",DenKalendáře-DATE(YEAR(DenKalendáře),1,0)))","v":"Den 85"},{"$f":"IF(WEEKDAY(DenKalendáře)=ZačátekTýdneHodnota,CONCATENATE(\"Týden \",WEEKNUM(DenKalendáře),\"/Den \",DenKalendáře-DATE(YEAR(DenKalendáře),1,0)),CONCATENATE(\"Den \",DenKalendáře-DATE(YEAR(DenKalendáře),1,0)))","v":"Den 86"},{"$f":"IF(WEEKDAY(DenKalendáře)=ZačátekTýdneHodnota,CONCATENATE(\"Týden \",WEEKNUM(DenKalendáře),\"/Den \",DenKalendáře-DATE(YEAR(DenKalendáře),1,0)),CONCATENATE(\"Den \",DenKalendáře-DATE(YEAR(DenKalendáře),1,0)))","v":"Den 87"},{"$f":"IF(WEEKDAY(DenKalendáře)=ZačátekTýdneHodnota,CONCATENATE(\"Týden \",WEEKNUM(DenKalendáře),\"/Den \",DenKalendáře-DATE(YEAR(DenKalendáře),1,0)),CONCATENATE(\"Den \",DenKalendáře-DATE(YEAR(DenKalendáře),1,0)))","v":"Den 88"},{"$f":"IF(WEEKDAY(DenKalendáře)=ZačátekTýdneHodnota,CONCATENATE(\"Týden \",WEEKNUM(DenKalendáře),\"/Den \",DenKalendáře-DATE(YEAR(DenKalendáře),1,0)),CONCATENATE(\"Den \",DenKalendáře-DATE(YEAR(DenKalendáře),1,0)))","v":"Den 89"},{"$f":"IF(WEEKDAY(DenKalendáře)=ZačátekTýdneHodnota,CONCATENATE(\"Týden \",WEEKNUM(DenKalendáře),\"/Den \",DenKalendáře-DATE(YEAR(DenKalendáře),1,0)),CONCATENATE(\"Den \",DenKalendáře-DATE(YEAR(DenKalendáře),1,0)))","v":"Den 90"}]
[{"$nulls":4},"POZNÁMKY"]
[]
[null,null,{"$f":"DnyATýdny+DATE(KalendářníRok,3,1)-WEEKDAY(DATE(KalendářníRok,3,1),(ZačátekTýdne=\"PO\")+1)+36","v":"2018-04-01"},"2018-04-02"]
[null,null,{"$f":"IF(WEEKDAY(DenKalendáře)=ZačátekTýdneHodnota,CONCATENATE(\"Týden \",WEEKNUM(DenKalendáře),\"/Den \",DenKalendáře-DATE(YEAR(DenKalendáře),1,0)),CONCATENATE(\"Den \",DenKalendáře-DATE(YEAR(DenKalendáře),1,0)))","v":"Týden 14/Den 91"},{"$f":"IF(WEEKDAY(DenKalendáře)=ZačátekTýdneHodnota,CONCATENATE(\"Týden \",WEEKNUM(DenKalendáře),\"/Den \",DenKalendáře-DATE(YEAR(DenKalendáře),1,0)),CONCATENATE(\"Den \",DenKalendáře-DATE(YEAR(DenKalendáře),1,0)))","v":"Den 92"}]

{"sheet":"DUBEN","index":3,"n_rows":20,"n_cols":9,"rows_kept":20,"merged":[[16,2,17,2],[17,4,19,8]]}
[null,"DUBEN",{"$f":"UPPER(TEXT(ZačátekTýdne,\"ddd\"))","v":"NE"},{"$f":"UPPER(TEXT(D3,\"aaa\"))","v":"PO"},"ÚT","ST","ČT","PÁ","SO"]
[null,{"$f":"KalendářníRok","v":2018}]
[null,null,{"$f":"DnyATýdny+DATE(KalendářníRok,4,1)-WEEKDAY(DATE(KalendářníRok,4,1),(ZačátekTýdne=\"PO\")+1)+1","v":"2018-04-01"},"2018-04-02","2018-04-03","2018-04-04","2018-04-05","2018-04-06","2018-04-07"]
[null,null,{"$f":"IF(DAY(DenKalendáře)=1,CONCATENATE(\"Týden \",WEEKNUM(DenKalendáře),\"/Den \",DenKalendáře-DATE(YEAR(DenKalendáře),1,0)),CONCATENATE(\"Den \",DenKalendáře-DATE(YEAR(DenKalendáře),1,0)))","v":"Týden 14/Den 91"},{"$f":"IF(DAY(DenKalendáře)=1,CONCATENATE(\"Týden \",WEEKNUM(DenKalendáře),\"/Den \",DenKalendáře-DATE(YEAR(DenKalendáře),1,0)),CONCATENATE(\"Den \",DenKalendáře-DATE(YEAR(DenKalendáře),1,0)))","v":"Den 92"},{"$f":"IF(DAY(DenKalendáře)=1,CONCATENATE(\"Týden \",WEEKNUM(DenKalendáře),\"/Den \",DenKalendáře-DATE(YEAR(DenKalendáře),1,0)),CONCATENATE(\"Den \",DenKalendáře-DATE(YEAR(DenKalendáře),1,0)))","v":"Den 93"},{"$f":"IF(DAY(DenKalendáře)=1,CONCATENATE(\"Týden \",WEEKNUM(DenKalendáře),\"/Den \",DenKalendáře-DATE(YEAR(DenKalendáře),1,0)),CONCATENATE(\"Den \",DenKalendáře-DATE(YEAR(DenKalendáře),1,0)))","v":"Den 94"},{"$f":"IF(DAY(DenKalendáře)=1,CONCATENATE(\"Týden \",WEEKNUM(DenKalendáře),\"/Den \",DenKalendáře-DATE(YEAR(DenKalendáře),1,0)),CONCATENATE(\"Den \",DenKalendáře-DATE(YEAR(DenKalendáře),1,0)))","v":"Den 95"},{"$f":"IF(DAY(DenKalendáře)=1,CONCATENATE(\"Týden \",WEEKNUM(DenKalendáře),\"/Den \",DenKalendáře-DATE(YEAR(DenKalendáře),1,0)),CONCATENATE(\"Den \",DenKalendáře-DATE(YEAR(DenKalendáře),1,0)))","v":"Den 96"},{"$f":"IF(DAY(DenKalendáře)=1,CONCATENATE(\"Týden \",WEEKNUM(DenKalendáře),\"/Den \",DenKalendáře-DATE(YEAR(DenKalendáře),1,0)),CONCATENATE(\"Den \",DenKalendáře-DATE(YEAR(DenKalendáře),1,0)))","v":"Den 97"}]
[]
[null,null,{"$f":"DnyATýdny+DATE(KalendářníRok,4,1)-WEEKDAY(DATE(KalendářníRok,4,1),(ZačátekTýdne=\"PO\")+1)+8","v":"2018-04-08"},"2018-04-09","2018-04-10","2018-04-11","2018-04-12","2018-04-13","2018-04-14"]
[null,null,{"$f":"IF(WEEKDAY(DenKalendáře)=ZačátekTýdneHodnota,CONCATENATE(\"Týden \",WEEKNUM(DenKalendáře),\"/Den \",DenKalendáře-DATE(YEAR(DenKalendáře),1,0)),CONCATENATE(\"Den \",DenKalendáře-DATE(YEAR(DenKalendáře),1,0)))","v":"Týden 15/Den 98"},{"$f":"IF(WEEKDAY(DenKalendáře)=ZačátekTýdneHodnota,CONCATENATE(\"Týden \",WEEKNUM(DenKalendáře),\"/Den \",DenKalendáře-DATE(YEAR(DenKalendáře),1,0)),CONCATENATE(\"Den \",DenKalendáře-DATE(YEAR(DenKalendáře),1,0)))","v":"Den 99"},{"$f":"IF(WEEKDAY(DenKalendáře)=ZačátekTýdneHodnota,CONCATENATE(\"Týden \",WEEKNUM(DenKalendáře),\"/Den \",DenKalendáře-DATE(YEAR(DenKalendáře),1,0)),CONCATENATE(\"Den \",DenKalendáře-DATE(YEAR(DenKalendáře),1,0)))","v":"Den 100"},{"$f":"IF(WEEKDAY(DenKalendáře)=ZačátekTýdneHodnota,CONCATENATE(\"Týden \",WEEKNUM(DenKalendáře),\"/Den \",DenKalendáře-DATE(YEAR(DenKalendáře),1,0)),CONCATENATE(\"Den \",DenKalendáře-DATE(YEAR(DenKalendáře),1,0)))","v":"Den 101"},{"$f":"IF(WEEKDAY(DenKalendáře)=ZačátekTýdneHodnota,CONCATENATE(\"Týden \",WEEKNUM(DenKalendáře),\"/Den \",DenKalendáře-DATE(YEAR(DenKalendáře),1,0)),CONCATENATE(\"Den \",DenKalendáře-DATE(YEAR(DenKalendáře),1,0)))","v":"Den 102"},{"$f":"IF(WEEKDAY(DenKalendáře)=ZačátekTýdneHodnota,CONCATENATE(\"Týden \",WEEKNUM(DenKalendáře),\"/Den \",DenKalendáře-DATE(YEAR(DenKalendáře),1,0)),CONCATENATE(\"Den \",DenKalendáře-DATE(YEAR(DenKalendáře),1,0)))","v":"Den 103"},{"$f":"IF(WEEKDAY(DenKalendáře)=ZačátekTýdneHodnota,CONCATENATE(\"Týden \",WEEKNUM(DenKalendáře),\"/Den \",DenKalendáře-DATE(YEAR(DenKalendáře),1,0)),CONCATENATE(\"Den \",DenKalendáře-DATE(YEAR(DenKalendáře),1,0)))","v":"Den 104"}]
[]
[null,null,{"$f":"DnyATýdny+DATE(KalendářníRok,4,1)-WEEKDAY(DATE(KalendářníRok,4,1),(ZačátekTýdne=\"PO\")+1)+15","v":"2018-04-15"},"2018-04-16","2018-04-17","2018-04-18","2018-04-19","2018-04-20","2018-04-21"]
[null,null,{"$f":"IF(WEEKDAY(DenKalendáře)=ZačátekTýdneHodnota,CONCATENATE(\"Týden \",WEEKNUM(DenKalendáře),\"/Den \",DenKalendáře-DATE(YEAR(DenKalendáře),1,0)),CONCATENATE(\"Den \",DenKalendáře-DATE(YEAR(DenKalendáře),1,0)))","v":"Týden 16/Den 105"},{"$f":"IF(WEEKDAY(DenKalendáře)=ZačátekTýdneHodnota,CONCATENATE(\"Týden \",WEEKNUM(DenKalendáře),\"/Den \",DenKalendáře-DATE(YEAR(DenKalendáře),1,0)),CONCATENATE(\"Den \",DenKalendáře-DATE(YEAR(DenKalendáře),1,0)))","v":"Den 106"},{"$f":"IF(WEEKDAY(DenKalendáře)=ZačátekTýdneHodnota,CONCATENATE(\"Týden \",WEEKNUM(DenKalendáře),\"/Den \",DenKalendáře-DATE(YEAR(DenKalendáře),1,0)),CONCATENATE(\"Den \",DenKalendáře-DATE(YEAR(DenKalendáře),1,0)))","v":"Den 107"},{"$f":"IF(WEEKDAY(DenKalendáře)=ZačátekTýdneHodnota,CONCATENATE(\"Týden \",WEEKNUM(DenKalendáře),\"/Den \",DenKalendáře-DATE(YEAR(DenKalendáře),1,0)),CONCATENATE(\"Den \",DenKalendáře-DATE(YEAR(DenKalendáře),1,0)))","v":"Den 108"},{"$f":"IF(WEEKDAY(DenKalendáře)=ZačátekTýdneHodnota,CONCATENATE(\"Týden \",WEEKNUM(DenKalendáře),\"/Den \",DenKalendáře-DATE(YEAR(DenKalendáře),1,0)),CONCATENATE(\"Den \",DenKalendáře-DATE(YEAR(DenKalendáře),1,0)))","v":"Den 109"},{"$f":"IF(WEEKDAY(DenKalendáře)=ZačátekTýdneHodnota,CONCATENATE(\"Týden \",WEEKNUM(DenKalendáře),\"/Den \",DenKalendáře-DATE(YEAR(DenKalendáře),1,0)),CONCATENATE(\"Den \",DenKalendáře-DATE(YEAR(DenKalendáře),1,0)))","v":"Den 110"},{"$f":"IF(WEEKDAY(DenKalendáře)=ZačátekTýdneHodnota,CONCATENATE(\"Týden \",WEEKNUM(DenKalendáře),\"/Den \",DenKalendáře-DATE(YEAR(DenKalendáře),1,0)),CONCATENATE(\"Den \",DenKalendáře-DATE(YEAR(DenKalendáře),1,0)))","v":"Den 111"}]
[]
[null,null,{"$f":"DnyATýdny+DATE(KalendářníRok,4,1)-WEEKDAY(DATE(KalendářníRok,4,1),(ZačátekTýdne=\"PO\")+1)+22","v":"2018-04-22"},"2018-04-23","2018-04-24","2018-04-25","2018-04-26","2018-04-27","2018-04-28"]
[null,null,{"$f":"IF(WEEKDAY(DenKalendáře)=ZačátekTýdneHodnota,CONCATENATE(\"Týden \",WEEKNUM(DenKalendáře),\"/Den \",DenKalendáře-DATE(YEAR(DenKalendáře),1,0)),CONCATENATE(\"Den \",DenKalendáře-DATE(YEAR(DenKalendáře),1,0)))","v":"Týden 17/Den 112"},{"$f":"IF(WEEKDAY(DenKalendáře)=ZačátekTýdneHodnota,CONCATENATE(\"Týden \",WEEKNUM(DenKalendáře),\"/Den \",DenKalendáře-DATE(YEAR(DenKalendáře),1,0)),CONCATENATE(\"Den \",DenKalendáře-DATE(YEAR(DenKalendáře),1,0)))","v":"Den 113"},{"$f":"IF(WEEKDAY(DenKalendáře)=ZačátekTýdneHodnota,CONCATENATE(\"Týden \",WEEKNUM(DenKalendáře),\"/Den \",DenKalendáře-DATE(YEAR(DenKalendáře),1,0)),CONCATENATE(\"Den \",DenKalendáře-DATE(YEAR(DenKalendáře),1,0)))","v":"Den 114"},{"$f":"IF(WEEKDAY(DenKalendáře)=ZačátekTýdneHodnota,CONCATENATE(\"Týden \",WEEKNUM(DenKalendáře),\"/Den \",DenKalendáře-DATE(YEAR(DenKalendáře),1,0)),CONCATENATE(\"Den \",DenKalendáře-DATE(YEAR(DenKalendáře),1,0)))","v":"Den 115"},{"$f":"IF(WEEKDAY(DenKalendáře)=ZačátekTýdneHodnota,CONCATENATE(\"Týden \",WEEKNUM(DenKalendáře),\"/Den \",DenKalendáře-DATE(YEAR(DenKalendáře),1,0)),CONCATENATE(\"Den \",DenKalendáře-DATE(YEAR(DenKalendáře),1,0)))","v":"Den 116"},{"$f":"IF(WEEKDAY(DenKalendáře)=ZačátekTýdneHodnota,CONCATENATE(\"Týden \",WEEKNUM(DenKalendáře),\"/Den \",DenKalendáře-DATE(YEAR(DenKalendáře),1,0)),CONCATENATE(\"Den \",DenKalendáře-DATE(YEAR(DenKalendáře),1,0)))","v":"Den 117"},{"$f":"IF(WEEKDAY(DenKalendáře)=ZačátekTýdneHodnota,CONCATENATE(\"Týden \",WEEKNUM(DenKalendáře),\"/Den \",DenKalendáře-DATE(YEAR(DenKalendáře),1,0)),CONCATENATE(\"Den \",DenKalendáře-DATE(YEAR(DenKalendáře),1,0)))","v":"Den 118"}]
[]
[null,null,{"$f":"DnyATýdny+DATE(KalendářníRok,4,1)-WEEKDAY(DATE(KalendářníRok,4,1),(ZačátekTýdne=\"PO\")+1)+29","v":"2018-04-29"},"2018-04-30","2018-05-01","2018-05-02","2018-05-03","2018-05-04","2018-05-05"]
[null,null,{"$f":"IF(WEEKDAY(DenKalendáře)=ZačátekTýdneHodnota,CONCATENATE(\"Týden \",WEEKNUM(DenKalendáře),\"/Den \",DenKalendáře-DATE(YEAR(DenKalendáře),1,0)),CONCATENATE(\"Den \",DenKalendáře-DATE(YEAR(DenKalendáře),1,0)))","v":"Týden 18/Den 119"},{"$f":"IF(WEEKDAY(DenKalendáře)=ZačátekTýdneHodnota,CONCATENATE(\"Týden \",WEEKNUM(DenKalendáře),\"/Den \",DenKalendáře-DATE(YEAR(DenKalendáře),1,0)),CONCATENATE(\"Den \",DenKalendáře-DATE(YEAR(DenKalendáře),1,0)))","v":"Den 120"},{"$f":"IF(WEEKDAY(DenKalendáře)=ZačátekTýdneHodnota,CONCATENATE(\"Týden \",WEEKNUM(DenKalendáře),\"/Den \",DenKalendáře-DATE(YEAR(DenKalendáře),1,0)),CONCATENATE(\"Den \",DenKalendáře-DATE(YEAR(DenKalendáře),1,0)))","v":"Den 121"},{"$f":"IF(WEEKDAY(DenKalendáře)=ZačátekTýdneHodnota,CONCATENATE(\"Týden \",WEEKNUM(DenKalendáře),\"/Den \",DenKalendáře-DATE(YEAR(DenKalendáře),1,0)),CONCATENATE(\"Den \",DenKalendáře-DATE(YEAR(DenKalendáře),1,0)))","v":"Den 122"},{"$f":"IF(WEEKDAY(DenKalendáře)=ZačátekTýdneHodnota,CONCATENATE(\"Týden \",WEEKNUM(DenKalendáře),\"/Den \",DenKalendáře-DATE(YEAR(DenKalendáře),1,0)),CONCATENATE(\"Den \",DenKalendáře-DATE(YEAR(DenKalendáře),1,0)))","v":"Den 123"},{"$f":"IF(WEEKDAY(DenKalendáře)=ZačátekTýdneHodnota,CONCATENATE(\"Týden \",WEEKNUM(DenKalendáře),\"/Den \",DenKalendáře-DATE(YEAR(DenKalendáře),1,0)),CONCATENATE(\"Den \",DenKalendáře-DATE(YEAR(DenKalendáře),1,0)))","v":"Den 124"},{"$f":"IF(WEEKDAY(DenKalendáře)=ZačátekTýdneHodnota,CONCATENATE(\"Týden \",WEEKNUM(DenKalendáře),\"/Den \",DenKalendáře-DATE(YEAR(DenKalendáře),1,0)),CONCATENATE(\"Den \",DenKalendáře-DATE(YEAR(DenKalendáře),1,0)))","v":"Den 125"}]
[{"$nulls":4},"POZNÁMKY"]
[]
[null,null,{"$f":"DnyATýdny+DATE(KalendářníRok,4,1)-WEEKDAY(DATE(KalendářníRok,4,1),(ZačátekTýdne=\"PO\")+1)+36","v":"2018-05-06"},"2018-05-07"]
[null,null,{"$f":"IF(WEEKDAY(DenKalendáře)=ZačátekTýdneHodnota,CONCATENATE(\"Týden \",WEEKNUM(DenKalendáře),\"/Den \",DenKalendáře-DATE(YEAR(DenKalendáře),1,0)),CONCATENATE(\"Den \",DenKalendáře-DATE(YEAR(DenKalendáře),1,0)))","v":"Týden 19/Den 126"},{"$f":"IF(WEEKDAY(DenKalendáře)=ZačátekTýdneHodnota,CONCATENATE(\"Týden \",WEEKNUM(DenKalendáře),\"/Den \",DenKalendáře-DATE(YEAR(DenKalendáře),1,0)),CONCATENATE(\"Den \",DenKalendáře-DATE(YEAR(DenKalendáře),1,0)))","v":"Den 127"}]

{"sheet":"KVĚTEN","index":4,"n_rows":20,"n_cols":9,"rows_kept":20,"merged":[[16,2,17,2],[17,4,19,8]]}
[null,"KVĚTEN",{"$f":"UPPER(TEXT(ZačátekTýdne,\"ddd\"))","v":"NE"},{"$f":"UPPER(TEXT(D3,\"aaa\"))","v":"PO"},"ÚT","ST","ČT","PÁ","SO"]
[null,{"$f":"KalendářníRok","v":2018}]
[null,null,{"$f":"DnyATýdny+DATE(KalendářníRok,5,1)-WEEKDAY(DATE(KalendářníRok,5,1),(ZačátekTýdne=\"PO\")+1)+1","v":"2018-04-29"},"2018-04-30","2018-05-01","2018-05-02","2018-05-03","2018-05-04","2018-05-05"]
[null,null,{"$f":"IF(DAY(DenKalendáře)=1,CONCATENATE(\"Týden \",WEEKNUM(DenKalendáře),\"/Den \",DenKalendáře-DATE(YEAR(DenKalendáře),1,0)),CONCATENATE(\"Den \",DenKalendáře-DATE(YEAR(DenKalendáře),1,0)))","v":"Den 119"},{"$f":"IF(DAY(DenKalendáře)=1,CONCATENATE(\"Týden \",WEEKNUM(DenKalendáře),\"/Den \",DenKalendáře-DATE(YEAR(DenKalendáře),1,0)),CONCATENATE(\"Den \",DenKalendáře-DATE(YEAR(DenKalendáře),1,0)))","v":"Den 120"},{"$f":"IF(DAY(DenKalendáře)=1,CONCATENATE(\"Týden \",WEEKNUM(DenKalendáře),\"/Den \",DenKalendáře-DATE(YEAR(DenKalendáře),1,0)),CONCATENATE(\"Den \",DenKalendáře-DATE(YEAR(DenKalendáře),1,0)))","v":"Týden 18/Den 121"},{"$f":"IF(DAY(DenKalendáře)=1,CONCATENATE(\"Týden \",WEEKNUM(DenKalendáře),\"/Den \",DenKalendáře-DATE(YEAR(DenKalendáře),1,0)),CONCATENATE(\"Den \",DenKalendáře-DATE(YEAR(DenKalendáře),1,0)))","v":"Den 122"},{"$f":"IF(DAY(DenKalendáře)=1,CONCATENATE(\"Týden \",WEEKNUM(DenKalendáře),\"/Den \",DenKalendáře-DATE(YEAR(DenKalendáře),1,0)),CONCATENATE(\"Den \",DenKalendáře-DATE(YEAR(DenKalendáře),1,0)))","v":"Den 123"},{"$f":"IF(DAY(DenKalendáře)=1,CONCATENATE(\"Týden \",WEEKNUM(DenKalendáře),\"/Den \",DenKalendáře-DATE(YEAR(DenKalendáře),1,0)),CONCATENATE(\"Den \",DenKalendáře-DATE(YEAR(DenKalendáře),1,0)))","v":"Den 124"},{"$f":"IF(DAY(DenKalendáře)=1,CONCATENATE(\"Týden \",WEEKNUM(DenKalendáře),\"/Den \",DenKalendáře-DATE(YEAR(DenKalendáře),1,0)),CONCATENATE(\"Den \",DenKalendáře-DATE(YEAR(DenKalendáře),1,0)))","v":"Den 125"}]
[]
[null,null,{"$f":"DnyATýdny+DATE(KalendářníRok,5,1)-WEEKDAY(DATE(KalendářníRok,5,1),(ZačátekTýdne=\"PO\")+1)+8","v":"2018-05-06"},"2018-05-07","2018-05-08","2018-05-09","2018-05-10","2018-05-11","2018-05-12"]
[null,null,{"$f":"IF(WEEKDAY(DenKalendáře)=ZačátekTýdneHodnota,CONCATENATE(\"Týden \",WEEKNUM(DenKalendáře),\"/Den \",DenKalendáře-DATE(YEAR(DenKalendáře),1,0)),CONCATENATE(\"Den \",DenKalendáře-DATE(YEAR(DenKalendáře),1,0)))","v":"Týden 19/Den 126"},{"$f":"IF(WEEKDAY(DenKalendáře)=ZačátekTýdneHodnota,CONCATENATE(\"Týden \",WEEKNUM(DenKalendáře),\"/Den \",DenKalendáře-DATE(YEAR(DenKalendáře),1,0)),CONCATENATE(\"Den \",DenKalendáře-DATE(YEAR(DenKalendáře),1,0)))","v":"Den 127"},{"$f":"IF(WEEKDAY(DenKalendáře)=ZačátekTýdneHodnota,CONCATENATE(\"Týden \",WEEKNUM(DenKalendáře),\"/Den \",DenKalendáře-DATE(YEAR(DenKalendáře),1,0)),CONCATENATE(\"Den \",DenKalendáře-DATE(YEAR(DenKalendáře),1,0)))","v":"Den 128"},{"$f":"IF(WEEKDAY(DenKalendáře)=ZačátekTýdneHodnota,CONCATENATE(\"Týden \",WEEKNUM(DenKalendáře),\"/Den \",DenKalendáře-DATE(YEAR(DenKalendáře),1,0)),CONCATENATE(\"Den \",DenKalendáře-DATE(YEAR(DenKalendáře),1,0)))","v":"Den 129"},{"$f":"IF(WEEKDAY(DenKalendáře)=ZačátekTýdneHodnota,CONCATENATE(\"Týden \",WEEKNUM(DenKalendáře),\"/Den \",DenKalendáře-DATE(YEAR(DenKalendáře),1,0)),CONCATENATE(\"Den \",DenKalendáře-DATE(YEAR(DenKalendáře),1,0)))","v":"Den 130"},{"$f":"IF(WEEKDAY(DenKalendáře)=ZačátekTýdneHodnota,CONCATENATE(\"Týden \",WEEKNUM(DenKalendáře),\"/Den \",DenKalendáře-DATE(YEAR(DenKalendáře),1,0)),CONCATENATE(\"Den \",DenKalendáře-DATE(YEAR(DenKalendáře),1,0)))","v":"Den 131"},{"$f":"IF(WEEKDAY(DenKalendáře)=ZačátekTýdneHodnota,CONCATENATE(\"Týden \",WEEKNUM(DenKalendáře),\"/Den \",DenKalendáře-DATE(YEAR(DenKalendáře),1,0)),CONCATENATE(\"Den \",DenKalendáře-DATE(YEAR(DenKalendáře),1,0)))","v":"Den 132"}]
[]
[null,null,{"$f":"DnyATýdny+DATE(KalendářníRok,5,1)-WEEKDAY(DATE(KalendářníRok,5,1),(ZačátekTýdne=\"PO\")+1)+15","v":"2018-05-13"},"2018-05-14","2018-05-15","2018-05-16","2018-05-17","2018-05-18","2018-05-19"]
[null,null,{"$f":"IF(WEEKDAY(DenKalendáře)=ZačátekTýdneHodnota,CONCATENATE(\"Týden \",WEEKNUM(DenKalendáře),\"/Den \",DenKalendáře-DATE(YEAR(DenKalendáře),1,0)),CONCATENATE(\"Den \",DenKalendáře-DATE(YEAR(DenKalendáře),1,0)))","v":"Týden 20/Den 133"},{"$f":"IF(WEEKDAY(DenKalendáře)=ZačátekTýdneHodnota,CONCATENATE(\"Týden \",WEEKNUM(DenKalendáře),\"/Den \",DenKalendáře-DATE(YEAR(DenKalendáře),1,0)),CONCATENATE(\"Den \",DenKalendáře-DATE(YEAR(DenKalendáře),1,0)))","v":"Den 134"},{"$f":"IF(WEEKDAY(DenKalendáře)=ZačátekTýdneHodnota,CONCATENATE(\"Týden \",WEEKNUM(DenKalendáře),\"/Den \",DenKalendáře-DATE(YEAR(DenKalendáře),1,0)),CONCATENATE(\"Den \",DenKalendáře-DATE(YEAR(DenKalendáře),1,0)))","v":"Den 135"},{"$f":"IF(WEEKDAY(DenKalendáře)=ZačátekTýdneHodnota,CONCATENATE(\"Týden \",WEEKNUM(DenKalendáře),\"/Den \",DenKalendáře-DATE(YEAR(DenKalendáře),1,0)),CONCATENATE(\"Den \",DenKalendáře-DATE(YEAR(DenKalendáře),1,0)))","v":"Den 136"},{"$f":"IF(WEEKDAY(DenKalendáře)=ZačátekTýdneHodnota,CONCATENATE(\"Týden \",WEEKNUM(DenKalendáře),\"/Den \",DenKalendáře-DATE(YEAR(DenKalendáře),1,0)),CONCATENATE(\"Den \",DenKalendáře-DATE(YEAR(DenKalendáře),1,0)))","v":"Den 137"},{"$f":"IF(WEEKDAY(DenKalendáře)=ZačátekTýdneHodnota,CONCATENATE(\"Týden \",WEEKNUM(DenKalendáře),\"/Den \",DenKalendáře-DATE(YEAR(DenKalendáře),1,0)),CONCATENATE(\"Den \",DenKalendáře-DATE(YEAR(DenKalendáře),1,0)))","v":"Den 138"},{"$f":"IF(WEEKDAY(DenKalendáře)=ZačátekTýdneHodnota,CONCATENATE(\"Týden \",WEEKNUM(DenKalendáře),\"/Den \",DenKalendáře-DATE(YEAR(DenKalendáře),1,0)),CONCATENATE(\"Den \",DenKalendáře-DATE(YEAR(DenKalendáře),1,0)))","v":"Den 139"}]
[]
[null,null,{"$f":"DnyATýdny+DATE(KalendářníRok,5,1)-WEEKDAY(DATE(KalendářníRok,5,1),(ZačátekTýdne=\"PO\")+1)+22","v":"2018-05-20"},"2018-05-21","2018-05-22","2018-05-23","2018-05-24","2018-05-25","2018-05-26"]
[null,null,{"$f":"IF(WEEKDAY(DenKalendáře)=ZačátekTýdneHodnota,CONCATENATE(\"Týden \",WEEKNUM(DenKalendáře),\"/Den \",DenKalendáře-DATE(YEAR(DenKalendáře),1,0)),CONCATENATE(\"Den \",DenKalendáře-DATE(YEAR(DenKalendáře),1,0)))","v":"Týden 21/Den 140"},{"$f":"IF(WEEKDAY(DenKalendáře)=ZačátekTýdneHodnota,CONCATENATE(\"Týden \",WEEKNUM(DenKalendáře),\"/Den \",DenKalendáře-DATE(YEAR(DenKalendáře),1,0)),CONCATENATE(\"Den \",DenKalendáře-DATE(YEAR(DenKalendáře),1,0)))","v":"Den 141"},{"$f":"IF(WEEKDAY(DenKalendáře)=ZačátekTýdneHodnota,CONCATENATE(\"Týden \",WEEKNUM(DenKalendáře),\"/Den \",DenKalendáře-DATE(YEAR(DenKalendáře),1,0)),CONCATENATE(\"Den \",DenKalendáře-DATE(YEAR(DenKalendáře),1,0)))","v":"Den 142"},{"$f":"IF(WEEKDAY(DenKalendáře)=ZačátekTýdneHodnota,CONCATENATE(\"Týden \",WEEKNUM(DenKalendáře),\"/Den \",DenKalendáře-DATE(YEAR(DenKalendáře),1,0)),CONCATENATE(\"Den \",DenKalendáře-DATE(YEAR(DenKalendáře),1,0)))","v":"Den 143"},{"$f":"IF(WEEKDAY(DenKalendáře)=ZačátekTýdneHodnota,CONCATENATE(\"Týden \",WEEKNUM(DenKalendáře),\"/Den \",DenKalendáře-DATE(YEAR(DenKalendáře),1,0)),CONCATENATE(\"Den \",DenKalendáře-DATE(YEAR(DenKalendáře),1,0)))","v":"Den 144"},{"$f":"IF(WEEKDAY(DenKalendáře)=ZačátekTýdneHodnota,CONCATENATE(\"Týden \",WEEKNUM(DenKalendáře),\"/Den \",DenKalendáře-DATE(YEAR(DenKalendáře),1,0)),CONCATENATE(\"Den \",DenKalendáře-DATE(YEAR(DenKalendáře),1,0)))","v":"Den 145"},{"$f":"IF(WEEKDAY(DenKalendáře)=ZačátekTýdneHodnota,CONCATENATE(\"Týden \",WEEKNUM(DenKalendáře),\"/Den \",DenKalendáře-DATE(YEAR(DenKalendáře),1,0)),CONCATENATE(\"Den \",DenKalendáře-DATE(YEAR(DenKalendáře),1,0)))","v":"Den 146"}]
[]
[null,null,{"$f":"DnyATýdny+DATE(KalendářníRok,5,1)-WEEKDAY(DATE(KalendářníRok,5,1),(ZačátekTýdne=\"PO\")+1)+29","v":"2018-05-27"},"2018-05-28","2018-05-29","2018-05-30","2018-05-31","2018-06-01","2018-06-02"]
[null,null,{"$f":"IF(WEEKDAY(DenKalendáře)=ZačátekTýdneHodnota,CONCATENATE(\"Týden \",WEEKNUM(DenKalendáře),\"/Den \",DenKalendáře-DATE(YEAR(DenKalendáře),1,0)),CONCATENATE(\"Den \",DenKalendáře-DATE(YEAR(DenKalendáře),1,0)))","v":"Týden 22/Den 147"},{"$f":"IF(WEEKDAY(DenKalendáře)=ZačátekTýdneHodnota,CONCATENATE(\"Týden \",WEEKNUM(DenKalendáře),\"/Den \",DenKalendáře-DATE(YEAR(DenKalendáře),1,0)),CONCATENATE(\"Den \",DenKalendáře-DATE(YEAR(DenKalendáře),1,0)))","v":"Den 148"},{"$f":"IF(WEEKDAY(DenKalendáře)=ZačátekTýdneHodnota,CONCATENATE(\"Týden \",WEEKNUM(DenKalendáře),\"/Den \",DenKalendáře-DATE(YEAR(DenKalendáře),1,0)),CONCATENATE(\"Den \",DenKalendáře-DATE(YEAR(DenKalendáře),1,0)))","v":"Den 149"},{"$f":"IF(WEEKDAY(DenKalendáře)=ZačátekTýdneHodnota,CONCATENATE(\"Týden \",WEEKNUM(DenKalendáře),\"/Den \",DenKalendáře-DATE(YEAR(DenKalendáře),1,0)),CONCATENATE(\"Den \",DenKalendáře-DATE(YEAR(DenKalendáře),1,0)))","v":"Den 150"},{"$f":"IF(WEEKDAY(DenKalendáře)=ZačátekTýdneHodnota,CONCATENATE(\"Týden \",WEEKNUM(DenKalendáře),\"/Den \",DenKalendáře-DATE(YEAR(DenKalendáře),1,0)),CONCATENATE(\"Den \",DenKalendáře-DATE(YEAR(DenKalendáře),1,0)))","v":"Den 151"},{"$f":"IF(WEEKDAY(DenKalendáře)=ZačátekTýdneHodnota,CONCATENATE(\"Týden \",WEEKNUM(DenKalendáře),\"/Den \",DenKalendáře-DATE(YEAR(DenKalendáře),1,0)),CONCATENATE(\"Den \",DenKalendáře-DATE(YEAR(DenKalendáře),1,0)))","v":"Den 152"},{"$f":"IF(WEEKDAY(DenKalendáře)=ZačátekTýdneHodnota,CONCATENATE(\"Týden \",WEEKNUM(DenKalendáře),\"/Den \",DenKalendáře-DATE(YEAR(DenKalendáře),1,0)),CONCATENATE(\"Den \",DenKalendáře-DATE(YEAR(DenKalendáře),1,0)))","v":"Den 153"}]
[{"$nulls":4},"POZNÁMKY"]
[]
[null,null,{"$f":"DnyATýdny+DATE(KalendářníRok,5,1)-WEEKDAY(DATE(KalendářníRok,5,1),(ZačátekTýdne=\"PO\")+1)+36","v":"2018-06-03"},"2018-06-04"]
[null,null,{"$f":"IF(WEEKDAY(DenKalendáře)=ZačátekTýdneHodnota,CONCATENATE(\"Týden \",WEEKNUM(DenKalendáře),\"/Den \",DenKalendáře-DATE(YEAR(DenKalendáře),1,0)),CONCATENATE(\"Den \",DenKalendáře-DATE(YEAR(DenKalendáře),1,0)))","v":"Týden 23/Den 154"},{"$f":"IF(WEEKDAY(DenKalendáře)=ZačátekTýdneHodnota,CONCATENATE(\"Týden \",WEEKNUM(DenKalendáře),\"/Den \",DenKalendáře-DATE(YEAR(DenKalendáře),1,0)),CONCATENATE(\"Den \",DenKalendáře-DATE(YEAR(DenKalendáře),1,0)))","v":"Den 155"}]

{"sheet":"ČERVEN","index":5,"n_rows":20,"n_cols":9,"rows_kept":20,"merged":[[16,2,17,2],[17,4,19,8]]}
[null,"ČERVEN",{"$f":"UPPER(TEXT(ZačátekTýdne,\"ddd\"))","v":"NE"},{"$f":"UPPER(TEXT(D3,\"aaa\"))","v":"PO"},"ÚT","ST","ČT","PÁ","SO"]
[null,{"$f":"KalendářníRok","v":2018}]
[null,null,{"$f":"DnyATýdny+DATE(KalendářníRok,6,1)-WEEKDAY(DATE(KalendářníRok,6,1),(ZačátekTýdne=\"PO\")+1)+1","v":"2018-05-27"},"2018-05-28","2018-05-29","2018-05-30","2018-05-31","2018-06-01","2018-06-02"]
[null,null,{"$f":"IF(DAY(DenKalendáře)=1,CONCATENATE(\"Týden \",WEEKNUM(DenKalendáře),\"/Den \",DenKalendáře-DATE(YEAR(DenKalendáře),1,0)),CONCATENATE(\"Den \",DenKalendáře-DATE(YEAR(DenKalendáře),1,0)))","v":"Den 147"},{"$f":"IF(DAY(DenKalendáře)=1,CONCATENATE(\"Týden \",WEEKNUM(DenKalendáře),\"/Den \",DenKalendáře-DATE(YEAR(DenKalendáře),1,0)),CONCATENATE(\"Den \",DenKalendáře-DATE(YEAR(DenKalendáře),1,0)))","v":"Den 148"},{"$f":"IF(DAY(DenKalendáře)=1,CONCATENATE(\"Týden \",WEEKNUM(DenKalendáře),\"/Den \",DenKalendáře-DATE(YEAR(DenKalendáře),1,0)),CONCATENATE(\"Den \",DenKalendáře-DATE(YEAR(DenKalendáře),1,0)))","v":"Den 149"},{"$f":"IF(DAY(DenKalendáře)=1,CONCATENATE(\"Týden \",WEEKNUM(DenKalendáře),\"/Den \",DenKalendáře-DATE(YEAR(DenKalendáře),1,0)),CONCATENATE(\"Den \",DenKalendáře-DATE(YEAR(DenKalendáře),1,0)))","v":"Den 150"},{"$f":"IF(DAY(DenKalendáře)=1,CONCATENATE(\"Týden \",WEEKNUM(DenKalendáře),\"/Den \",DenKalendáře-DATE(YEAR(DenKalendáře),1,0)),CONCATENATE(\"Den \",DenKalendáře-DATE(YEAR(DenKalendáře),1,0)))","v":"Den 151"},{"$f":"IF(DAY(DenKalendáře)=1,CONCATENATE(\"Týden \",WEEKNUM(DenKalendáře),\"/Den \",DenKalendáře-DATE(YEAR(DenKalendáře),1,0)),CONCATENATE(\"Den \",DenKalendáře-DATE(YEAR(DenKalendáře),1,0)))","v":"Týden 22/Den 152"},{"$f":"IF(DAY(DenKalendáře)=1,CONCATENATE(\"Týden \",WEEKNUM(DenKalendáře),\"/Den \",DenKalendáře-DATE(YEAR(DenKalendáře),1,0)),CONCATENATE(\"Den \",DenKalendáře-DATE(YEAR(DenKalendáře),1,0)))","v":"Den 153"}]
[]
[null,null,{"$f":"DnyATýdny+DATE(KalendářníRok,6,1)-WEEKDAY(DATE(KalendářníRok,6,1),(ZačátekTýdne=\"PO\")+1)+8","v":"2018-06-03"},"2018-06-04","2018-06-05","2018-06-06","2018-06-07","2018-06-08","2018-06-09"]
[null,null,{"$f":"IF(WEEKDAY(DenKalendáře)=ZačátekTýdneHodnota,CONCATENATE(\"Týden \",WEEKNUM(DenKalendáře),\"/Den \",DenKalendáře-DATE(YEAR(DenKalendáře),1,0)),CONCATENATE(\"Den \",DenKalendáře-DATE(YEAR(DenKalendáře),1,0)))","v":"Týden 23/Den 154"},{"$f":"IF(WEEKDAY(DenKalendáře)=ZačátekTýdneHodnota,CONCATENATE(\"Týden \",WEEKNUM(DenKalendáře),\"/Den \",DenKalendáře-DATE(YEAR(DenKalendáře),1,0)),CONCATENATE(\"Den \",DenKalendáře-DATE(YEAR(DenKalendáře),1,0)))","v":"Den 155"},{"$f":"IF(WEEKDAY(DenKalendáře)=ZačátekTýdneHodnota,CONCATENATE(\"Týden \",WEEKNUM(DenKalendáře),\"/Den \",DenKalendáře-DATE(YEAR(DenKalendáře),1,0)),CONCATENATE(\"Den \",DenKalendáře-DATE(YEAR(DenKalendáře),1,0)))","v":"Den 156"},{"$f":"IF(WEEKDAY(DenKalendáře)=ZačátekTýdneHodnota,CONCATENATE(\"Týden \",WEEKNUM(DenKalendáře),\"/Den \",DenKalendáře-DATE(YEAR(DenKalendáře),1,0)),CONCATENATE(\"Den \",DenKalendáře-DATE(YEAR(DenKalendáře),1,0)))","v":"Den 157"},{"$f":"IF(WEEKDAY(DenKalendáře)=ZačátekTýdneHodnota,CONCATENATE(\"Týden \",WEEKNUM(DenKalendáře),\"/Den \",DenKalendáře-DATE(YEAR(DenKalendáře),1,0)),CONCATENATE(\"Den \",DenKalendáře-DATE(YEAR(DenKalendáře),1,0)))","v":"Den 158"},{"$f":"IF(WEEKDAY(DenKalendáře)=ZačátekTýdneHodnota,CONCATENATE(\"Týden \",WEEKNUM(DenKalendáře),\"/Den \",DenKalendáře-DATE(YEAR(DenKalendáře),1,0)),CONCATENATE(\"Den \",DenKalendáře-DATE(YEAR(DenKalendáře),1,0)))","v":"Den 159"},{"$f":"IF(WEEKDAY(DenKalendáře)=ZačátekTýdneHodnota,CONCATENATE(\"Týden \",WEEKNUM(DenKalendáře),\"/Den \",DenKalendáře-DATE(YEAR(DenKalendáře),1,0)),CONCATENATE(\"Den \",DenKalendáře-DATE(YEAR(DenKalendáře),1,0)))","v":"Den 160"}]
[]
[null,null,{"$f":"DnyATýdny+DATE(KalendářníRok,6,1)-WEEKDAY(DATE(KalendářníRok,6,1),(ZačátekTýdne=\"PO\")+1)+15","v":"2018-06-10"},"2018-06-11","2018-06-12","2018-06-13","2018-06-14","2018-06-15","2018-06-16"]
[null,null,{"$f":"IF(WEEKDAY(DenKalendáře)=ZačátekTýdneHodnota,CONCATENATE(\"Týden \",WEEKNUM(DenKalendáře),\"/Den \",DenKalendáře-DATE(YEAR(DenKalendáře),1,0)),CONCATENATE(\"Den \",DenKalendáře-DATE(YEAR(DenKalendáře),1,0)))","v":"Týden 24/Den 161"},{"$f":"IF(WEEKDAY(DenKalendáře)=ZačátekTýdneHodnota,CONCATENATE(\"Týden \",WEEKNUM(DenKalendáře),\"/Den \",DenKalendáře-DATE(YEAR(DenKalendáře),1,0)),CONCATENATE(\"Den \",DenKalendáře-DATE(YEAR(DenKalendáře),1,0)))","v":"Den 162"},{"$f":"IF(WEEKDAY(DenKalendáře)=ZačátekTýdneHodnota,CONCATENATE(\"Týden \",WEEKNUM(DenKalendáře),\"/Den \",DenKalendáře-DATE(YEAR(DenKalendáře),1,0)),CONCATENATE(\"Den \",DenKalendáře-DATE(YEAR(DenKalendáře),1,0)))","v":"Den 163"},{"$f":"IF(WEEKDAY(DenKalendáře)=ZačátekTýdneHodnota,CONCATENATE(\"Týden \",WEEKNUM(DenKalendáře),\"/Den \",DenKalendáře-DATE(YEAR(DenKalendáře),1,0)),CONCATENATE(\"Den \",DenKalendáře-DATE(YEAR(DenKalendáře),1,0)))","v":"Den 164"},{"$f":"IF(WEEKDAY(DenKalendáře)=ZačátekTýdneHodnota,CONCATENATE(\"Týden \",WEEKNUM(DenKalendáře),\"/Den \",DenKalendáře-DATE(YEAR(DenKalendáře),1,0)),CONCATENATE(\"Den \",DenKalendáře-DATE(YEAR(DenKalendáře),1,0)))","v":"Den 165"},{"$f":"IF(WEEKDAY(DenKalendáře)=ZačátekTýdneHodnota,CONCATENATE(\"Týden \",WEEKNUM(DenKalendáře),\"/Den \",DenKalendáře-DATE(YEAR(DenKalendáře),1,0)),CONCATENATE(\"Den \",DenKalendáře-DATE(YEAR(DenKalendáře),1,0)))","v":"Den 166"},{"$f":"IF(WEEKDAY(DenKalendáře)=ZačátekTýdneHodnota,CONCATENATE(\"Týden \",WEEKNUM(DenKalendáře),\"/Den \",DenKalendáře-DATE(YEAR(DenKalendáře),1,0)),CONCATENATE(\"Den \",DenKalendáře-DATE(YEAR(DenKalendáře),1,0)))","v":"Den 167"}]
[]
[null,null,{"$f":"DnyATýdny+DATE(KalendářníRok,6,1)-WEEKDAY(DATE(KalendářníRok,6,1),(ZačátekTýdne=\"PO\")+1)+22","v":"2018-06-17"},"2018-06-18","2018-06-19","2018-06-20","2018-06-21","2018-06-22","2018-06-23"]
[null,null,{"$f":"IF(WEEKDAY(DenKalendáře)=ZačátekTýdneHodnota,CONCATENATE(\"Týden \",WEEKNUM(DenKalendáře),\"/Den \",DenKalendáře-DATE(YEAR(DenKalendáře),1,0)),CONCATENATE(\"Den \",DenKalendáře-DATE(YEAR(DenKalendáře),1,0)))","v":"Týden 25/Den 168"},{"$f":"IF(WEEKDAY(DenKalendáře)=ZačátekTýdneHodnota,CONCATENATE(\"Týden \",WEEKNUM(DenKalendáře),\"/Den \",DenKalendáře-DATE(YEAR(DenKalendáře),1,0)),CONCATENATE(\"Den \",DenKalendáře-DATE(YEAR(DenKalendáře),1,0)))","v":"Den 169"},{"$f":"IF(WEEKDAY(DenKalendáře)=ZačátekTýdneHodnota,CONCATENATE(\"Týden \",WEEKNUM(DenKalendáře),\"/Den \",DenKalendáře-DATE(YEAR(DenKalendáře),1,0)),CONCATENATE(\"Den \",DenKalendáře-DATE(YEAR(DenKalendáře),1,0)))","v":"Den 170"},{"$f":"IF(WEEKDAY(DenKalendáře)=ZačátekTýdneHodnota,CONCATENATE(\"Týden \",WEEKNUM(DenKalendáře),\"/Den \",DenKalendáře-DATE(YEAR(DenKalendáře),1,0)),CONCATENATE(\"Den \",DenKalendáře-DATE(YEAR(DenKalendáře),1,0)))","v":"Den 171"},{"$f":"IF(WEEKDAY(DenKalendáře)=ZačátekTýdneHodnota,CONCATENATE(\"Týden \",WEEKNUM(DenKalendáře),\"/Den \",DenKalendáře-DATE(YEAR(DenKalendáře),1,0)),CONCATENATE(\"Den \",DenKalendáře-DATE(YEAR(DenKalendáře),1,0)))","v":"Den 172"},{"$f":"IF(WEEKDAY(DenKalendáře)=ZačátekTýdneHodnota,CONCATENATE(\"Týden \",WEEKNUM(DenKalendáře),\"/Den \",DenKalendáře-DATE(YEAR(DenKalendáře),1,0)),CONCATENATE(\"Den \",DenKalendáře-DATE(YEAR(DenKalendáře),1,0)))","v":"Den 173"},{"$f":"IF(WEEKDAY(DenKalendáře)=ZačátekTýdneHodnota,CONCATENATE(\"Týden \",WEEKNUM(DenKalendáře),\"/Den \",DenKalendáře-DATE(YEAR(DenKalendáře),1,0)),CONCATENATE(\"Den \",DenKalendáře-DATE(YEAR(DenKalendáře),1,0)))","v":"Den 174"}]
[]
[null,null,{"$f":"DnyATýdny+DATE(KalendářníRok,6,1)-WEEKDAY(DATE(KalendářníRok,6,1),(ZačátekTýdne=\"PO\")+1)+29","v":"2018-06-24"},"2018-06-25","2018-06-26","2018-06-27","2018-06-28","2018-06-29","2018-06-30"]
[null,null,{"$f":"IF(WEEKDAY(DenKalendáře)=ZačátekTýdneHodnota,CONCATENATE(\"Týden \",WEEKNUM(DenKalendáře),\"/Den \",DenKalendáře-DATE(YEAR(DenKalendáře),1,0)),CONCATENATE(\"Den \",DenKalendáře-DATE(YEAR(DenKalendáře),1,0)))","v":"Týden 26/Den 175"},{"$f":"IF(WEEKDAY(DenKalendáře)=ZačátekTýdneHodnota,CONCATENATE(\"Týden \",WEEKNUM(DenKalendáře),\"/Den \",DenKalendáře-DATE(YEAR(DenKalendáře),1,0)),CONCATENATE(\"Den \",DenKalendáře-DATE(YEAR(DenKalendáře),1,0)))","v":"Den 176"},{"$f":"IF(WEEKDAY(DenKalendáře)=ZačátekTýdneHodnota,CONCATENATE(\"Týden \",WEEKNUM(DenKalendáře),\"/Den \",DenKalendáře-DATE(YEAR(DenKalendáře),1,0)),CONCATENATE(\"Den \",DenKalendáře-DATE(YEAR(DenKalendáře),1,0)))","v":"Den 177"},{"$f":"IF(WEEKDAY(DenKalendáře)=ZačátekTýdneHodnota,CONCATENATE(\"Týden \",WEEKNUM(DenKalendáře),\"/Den \",DenKalendáře-DATE(YEAR(DenKalendáře),1,0)),CONCATENATE(\"Den \",DenKalendáře-DATE(YEAR(DenKalendáře),1,0)))","v":"Den 178"},{"$f":"IF(WEEKDAY(DenKalendáře)=ZačátekTýdneHodnota,CONCATENATE(\"Týden \",WEEKNUM(DenKalendáře),\"/Den \",DenKalendáře-DATE(YEAR(DenKalendáře),1,0)),CONCATENATE(\"Den \",DenKalendáře-DATE(YEAR(DenKalendáře),1,0)))","v":"Den 179"},{"$f":"IF(WEEKDAY(DenKalendáře)=ZačátekTýdneHodnota,CONCATENATE(\"Týden \",WEEKNUM(DenKalendáře),\"/Den \",DenKalendáře-DATE(YEAR(DenKalendáře),1,0)),CONCATENATE(\"Den \",DenKalendáře-DATE(YEAR(DenKalendáře),1,0)))","v":"Den 180"},{"$f":"IF(WEEKDAY(DenKalendáře)=ZačátekTýdneHodnota,CONCATENATE(\"Týden \",WEEKNUM(DenKalendáře),\"/Den \",DenKalendáře-DATE(YEAR(DenKalendáře),1,0)),CONCATENATE(\"Den \",DenKalendáře-DATE(YEAR(DenKalendáře),1,0)))","v":"Den 181"}]
[{"$nulls":4},"POZNÁMKY"]
[]
[null,null,{"$f":"DnyATýdny+DATE(KalendářníRok,6,1)-WEEKDAY(DATE(KalendářníRok,6,1),(ZačátekTýdne=\"PO\")+1)+36","v":"2018-07-01"},"2018-07-02"]
[null,null,{"$f":"IF(WEEKDAY(DenKalendáře)=ZačátekTýdneHodnota,CONCATENATE(\"Týden \",WEEKNUM(DenKalendáře),\"/Den \",DenKalendáře-DATE(YEAR(DenKalendáře),1,0)),CONCATENATE(\"Den \",DenKalendáře-DATE(YEAR(DenKalendáře),1,0)))","v":"Týden 27/Den 182"},{"$f":"IF(WEEKDAY(DenKalendáře)=ZačátekTýdneHodnota,CONCATENATE(\"Týden \",WEEKNUM(DenKalendáře),\"/Den \",DenKalendáře-DATE(YEAR(DenKalendáře),1,0)),CONCATENATE(\"Den \",DenKalendáře-DATE(YEAR(DenKalendáře),1,0)))","v":"Den 183"}]

{"sheet":"ČERVENEC","index":6,"n_rows":20,"n_cols":9,"rows_kept":20,"merged":[[16,2,17,2],[17,4,19,8]]}
[null,"ČERVENEC",{"$f":"UPPER(TEXT(ZačátekTýdne,\"ddd\"))","v":"NE"},{"$f":"UPPER(TEXT(D3,\"aaa\"))","v":"PO"},"ÚT","ST","ČT","PÁ","SO"]
[null,{"$f":"KalendářníRok","v":2018}]
[null,null,{"$f":"DnyATýdny+DATE(KalendářníRok,7,1)-WEEKDAY(DATE(KalendářníRok,7,1),(ZačátekTýdne=\"PO\")+1)+1","v":"2018-07-01"},"2018-07-02","2018-07-03","2018-07-04","2018-07-05","2018-07-06","2018-07-07"]
[null,null,{"$f":"IF(DAY(DenKalendáře)=1,CONCATENATE(\"Týden \",WEEKNUM(DenKalendáře),\"/Den \",DenKalendáře-DATE(YEAR(DenKalendáře),1,0)),CONCATENATE(\"Den \",DenKalendáře-DATE(YEAR(DenKalendáře),1,0)))","v":"Týden 27/Den 182"},{"$f":"IF(DAY(DenKalendáře)=1,CONCATENATE(\"Týden \",WEEKNUM(DenKalendáře),\"/Den \",DenKalendáře-DATE(YEAR(DenKalendáře),1,0)),CONCATENATE(\"Den \",DenKalendáře-DATE(YEAR(DenKalendáře),1,0)))","v":"Den 183"},{"$f":"IF(DAY(DenKalendáře)=1,CONCATENATE(\"Týden \",WEEKNUM(DenKalendáře),\"/Den \",DenKalendáře-DATE(YEAR(DenKalendáře),1,0)),CONCATENATE(\"Den \",DenKalendáře-DATE(YEAR(DenKalendáře),1,0)))","v":"Den 184"},{"$f":"IF(DAY(DenKalendáře)=1,CONCATENATE(\"Týden \",WEEKNUM(DenKalendáře),\"/Den \",DenKalendáře-DATE(YEAR(DenKalendáře),1,0)),CONCATENATE(\"Den \",DenKalendáře-DATE(YEAR(DenKalendáře),1,0)))","v":"Den 185"},{"$f":"IF(DAY(DenKalendáře)=1,CONCATENATE(\"Týden \",WEEKNUM(DenKalendáře),\"/Den \",DenKalendáře-DATE(YEAR(DenKalendáře),1,0)),CONCATENATE(\"Den \",DenKalendáře-DATE(YEAR(DenKalendáře),1,0)))","v":"Den 186"},{"$f":"IF(DAY(DenKalendáře)=1,CONCATENATE(\"Týden \",WEEKNUM(DenKalendáře),\"/Den \",DenKalendáře-DATE(YEAR(DenKalendáře),1,0)),CONCATENATE(\"Den \",DenKalendáře-DATE(YEAR(DenKalendáře),1,0)))","v":"Den 187"},{"$f":"IF(DAY(DenKalendáře)=1,CONCATENATE(\"Týden \",WEEKNUM(DenKalendáře),\"/Den \",DenKalendáře-DATE(YEAR(DenKalendáře),1,0)),CONCATENATE(\"Den \",DenKalendáře-DATE(YEAR(DenKalendáře),1,0)))","v":"Den 188"}]
[]
[null,null,{"$f":"DnyATýdny+DATE(KalendářníRok,7,1)-WEEKDAY(DATE(KalendářníRok,7,1),(ZačátekTýdne=\"PO\")+1)+8","v":"2018-07-08"},"2018-07-09","2018-07-10","2018-07-11","2018-07-12","2018-07-13","2018-07-14"]
[null,null,{"$f":"IF(WEEKDAY(DenKalendáře)=ZačátekTýdneHodnota,CONCATENATE(\"Týden \",WEEKNUM(DenKalendáře),\"/Den \",DenKalendáře-DATE(YEAR(DenKalendáře),1,0)),CONCATENATE(\"Den \",DenKalendáře-DATE(YEAR(DenKalendáře),1,0)))","v":"Týden 28/Den 189"},{"$f":"IF(WEEKDAY(DenKalendáře)=ZačátekTýdneHodnota,CONCATENATE(\"Týden \",WEEKNUM(DenKalendáře),\"/Den \",DenKalendáře-DATE(YEAR(DenKalendáře),1,0)),CONCATENATE(\"Den \",DenKalendáře-DATE(YEAR(DenKalendáře),1,0)))","v":"Den 190"},{"$f":"IF(WEEKDAY(DenKalendáře)=ZačátekTýdneHodnota,CONCATENATE(\"Týden \",WEEKNUM(DenKalendáře),\"/Den \",DenKalendáře-DATE(YEAR(DenKalendáře),1,0)),CONCATENATE(\"Den \",DenKalendáře-DATE(YEAR(DenKalendáře),1,0)))","v":"Den 191"},{"$f":"IF(WEEKDAY(DenKalendáře)=ZačátekTýdneHodnota,CONCATENATE(\"Týden \",WEEKNUM(DenKalendáře),\"/Den \",DenKalendáře-DATE(YEAR(DenKalendáře),1,0)),CONCATENATE(\"Den \",DenKalendáře-DATE(YEAR(DenKalendáře),1,0)))","v":"Den 192"},{"$f":"IF(WEEKDAY(DenKalendáře)=ZačátekTýdneHodnota,CONCATENATE(\"Týden \",WEEKNUM(DenKalendáře),\"/Den \",DenKalendáře-DATE(YEAR(DenKalendáře),1,0)),CONCATENATE(\"Den \",DenKalendáře-DATE(YEAR(DenKalendáře),1,0)))","v":"Den 193"},{"$f":"IF(WEEKDAY(DenKalendáře)=ZačátekTýdneHodnota,CONCATENATE(\"Týden \",WEEKNUM(DenKalendáře),\"/Den \",DenKalendáře-DATE(YEAR(DenKalendáře),1,0)),CONCATENATE(\"Den \",DenKalendáře-DATE(YEAR(DenKalendáře),1,0)))","v":"Den 194"},{"$f":"IF(WEEKDAY(DenKalendáře)=ZačátekTýdneHodnota,CONCATENATE(\"Týden \",WEEKNUM(DenKalendáře),\"/Den \",DenKalendáře-DATE(YEAR(DenKalendáře),1,0)),CONCATENATE(\"Den \",DenKalendáře-DATE(YEAR(DenKalendáře),1,0)))","v":"Den 195"}]
[]
[null,null,{"$f":"DnyATýdny+DATE(KalendářníRok,7,1)-WEEKDAY(DATE(KalendářníRok,7,1),(ZačátekTýdne=\"PO\")+1)+15","v":"2018-07-15"},"2018-07-16","2018-07-17","2018-07-18","2018-07-19","2018-07-20","2018-07-21"]
[null,null,{"$f":"IF(WEEKDAY(DenKalendáře)=ZačátekTýdneHodnota,CONCATENATE(\"Týden \",WEEKNUM(DenKalendáře),\"/Den \",DenKalendáře-DATE(YEAR(DenKalendáře),1,0)),CONCATENATE(\"Den \",DenKalendáře-DATE(YEAR(DenKalendáře),1,0)))","v":"Týden 29/Den 196"},{"$f":"IF(WEEKDAY(DenKalendáře)=ZačátekTýdneHodnota,CONCATENATE(\"Týden \",WEEKNUM(DenKalendáře),\"/Den \",DenKalendáře-DATE(YEAR(DenKalendáře),1,0)),CONCATENATE(\"Den \",DenKalendáře-DATE(YEAR(DenKalendáře),1,0)))","v":"Den 197"},{"$f":"IF(WEEKDAY(DenKalendáře)=ZačátekTýdneHodnota,CONCATENATE(\"Týden \",WEEKNUM(DenKalendáře),\"/Den \",DenKalendáře-DATE(YEAR(DenKalendáře),1,0)),CONCATENATE(\"Den \",DenKalendáře-DATE(YEAR(DenKalendáře),1,0)))","v":"Den 198"},{"$f":"IF(WEEKDAY(DenKalendáře)=ZačátekTýdneHodnota,CONCATENATE(\"Týden \",WEEKNUM(DenKalendáře),\"/Den \",DenKalendáře-DATE(YEAR(DenKalendáře),1,0)),CONCATENATE(\"Den \",DenKalendáře-DATE(YEAR(DenKalendáře),1,0)))","v":"Den 199"},{"$f":"IF(WEEKDAY(DenKalendáře)=ZačátekTýdneHodnota,CONCATENATE(\"Týden \",WEEKNUM(DenKalendáře),\"/Den \",DenKalendáře-DATE(YEAR(DenKalendáře),1,0)),CONCATENATE(\"Den \",DenKalendáře-DATE(YEAR(DenKalendáře),1,0)))","v":"Den 200"},{"$f":"IF(WEEKDAY(DenKalendáře)=ZačátekTýdneHodnota,CONCATENATE(\"Týden \",WEEKNUM(DenKalendáře),\"/Den \",DenKalendáře-DATE(YEAR(DenKalendáře),1,0)),CONCATENATE(\"Den \",DenKalendáře-DATE(YEAR(DenKalendáře),1,0)))","v":"Den 201"},{"$f":"IF(WEEKDAY(DenKalendáře)=ZačátekTýdneHodnota,CONCATENATE(\"Týden \",WEEKNUM(DenKalendáře),\"/Den \",DenKalendáře-DATE(YEAR(DenKalendáře),1,0)),CONCATENATE(\"Den \",DenKalendáře-DATE(YEAR(DenKalendáře),1,0)))","v":"Den 202"}]
[]
[null,null,{"$f":"DnyATýdny+DATE(KalendářníRok,7,1)-WEEKDAY(DATE(KalendářníRok,7,1),(ZačátekTýdne=\"PO\")+1)+22","v":"2018-07-22"},"2018-07-23","2018-07-24","2018-07-25","2018-07-26","2018-07-27","2018-07-28"]
[null,null,{"$f":"IF(WEEKDAY(DenKalendáře)=ZačátekTýdneHodnota,CONCATENATE(\"Týden \",WEEKNUM(DenKalendáře),\"/Den \",DenKalendáře-DATE(YEAR(DenKalendáře),1,0)),CONCATENATE(\"Den \",DenKalendáře-DATE(YEAR(DenKalendáře),1,0)))","v":"Týden 30/Den 203"},{"$f":"IF(WEEKDAY(DenKalendáře)=ZačátekTýdneHodnota,CONCATENATE(\"Týden \",WEEKNUM(DenKalendáře),\"/Den \",DenKalendáře-DATE(YEAR(DenKalendáře),1,0)),CONCATENATE(\"Den \",DenKalendáře-DATE(YEAR(DenKalendáře),1,0)))","v":"Den 204"},{"$f":"IF(WEEKDAY(DenKalendáře)=ZačátekTýdneHodnota,CONCATENATE(\"Týden \",WEEKNUM(DenKalendáře),\"/Den \",DenKalendáře-DATE(YEAR(DenKalendáře),1,0)),CONCATENATE(\"Den \",DenKalendáře-DATE(YEAR(DenKalendáře),1,0)))","v":"Den 205"},{"$f":"IF(WEEKDAY(DenKalendáře)=ZačátekTýdneHodnota,CONCATENATE(\"Týden \",WEEKNUM(DenKalendáře),\"/Den \",DenKalendáře-DATE(YEAR(DenKalendáře),1,0)),CONCATENATE(\"Den \",DenKalendáře-DATE(YEAR(DenKalendáře),1,0)))","v":"Den 206"},{"$f":"IF(WEEKDAY(DenKalendáře)=ZačátekTýdneHodnota,CONCATENATE(\"Týden \",WEEKNUM(DenKalendáře),\"/Den \",DenKalendáře-DATE(YEAR(DenKalendáře),1,0)),CONCATENATE(\"Den \",DenKalendáře-DATE(YEAR(DenKalendáře),1,0)))","v":"Den 207"},{"$f":"IF(WEEKDAY(DenKalendáře)=ZačátekTýdneHodnota,CONCATENATE(\"Týden \",WEEKNUM(DenKalendáře),\"/Den \",DenKalendáře-DATE(YEAR(DenKalendáře),1,0)),CONCATENATE(\"Den \",DenKalendáře-DATE(YEAR(DenKalendáře),1,0)))","v":"Den 208"},{"$f":"IF(WEEKDAY(DenKalendáře)=ZačátekTýdneHodnota,CONCATENATE(\"Týden \",WEEKNUM(DenKalendáře),\"/Den \",DenKalendáře-DATE(YEAR(DenKalendáře),1,0)),CONCATENATE(\"Den \",DenKalendáře-DATE(YEAR(DenKalendáře),1,0)))","v":"Den 209"}]
[]
[null,null,{"$f":"DnyATýdny+DATE(KalendářníRok,7,1)-WEEKDAY(DATE(KalendářníRok,7,1),(ZačátekTýdne=\"PO\")+1)+29","v":"2018-07-29"},"2018-07-30","2018-07-31","2018-08-01","2018-08-02","2018-08-03","2018-08-04"]
[null,null,{"$f":"IF(WEEKDAY(DenKalendáře)=ZačátekTýdneHodnota,CONCATENATE(\"Týden \",WEEKNUM(DenKalendáře),\"/Den \",DenKalendáře-DATE(YEAR(DenKalendáře),1,0)),CONCATENATE(\"Den \",DenKalendáře-DATE(YEAR(DenKalendáře),1,0)))","v":"Týden 31/Den 210"},{"$f":"IF(WEEKDAY(DenKalendáře)=ZačátekTýdneHodnota,CONCATENATE(\"Týden \",WEEKNUM(DenKalendáře),\"/Den \",DenKalendáře-DATE(YEAR(DenKalendáře),1,0)),CONCATENATE(\"Den \",DenKalendáře-DATE(YEAR(DenKalendáře),1,0)))","v":"Den 211"},{"$f":"IF(WEEKDAY(DenKalendáře)=ZačátekTýdneHodnota,CONCATENATE(\"Týden \",WEEKNUM(DenKalendáře),\"/Den \",DenKalendáře-DATE(YEAR(DenKalendáře),1,0)),CONCATENATE(\"Den \",DenKalendáře-DATE(YEAR(DenKalendáře),1,0)))","v":"Den 212"},{"$f":"IF(WEEKDAY(DenKalendáře)=ZačátekTýdneHodnota,CONCATENATE(\"Týden \",WEEKNUM(DenKalendáře),\"/Den \",DenKalendáře-DATE(YEAR(DenKalendáře),1,0)),CONCATENATE(\"Den \",DenKalendáře-DATE(YEAR(DenKalendáře),1,0)))","v":"Den 213"},{"$f":"IF(WEEKDAY(DenKalendáře)=ZačátekTýdneHodnota,CONCATENATE(\"Týden \",WEEKNUM(DenKalendáře),\"/Den \",DenKalendáře-DATE(YEAR(DenKalendáře),1,0)),CONCATENATE(\"Den \",DenKalendáře-DATE(YEAR(DenKalendáře),1,0)))","v":"Den 214"},{"$f":"IF(WEEKDAY(DenKalendáře)=ZačátekTýdneHodnota,CONCATENATE(\"Týden \",WEEKNUM(DenKalendáře),\"/Den \",DenKalendáře-DATE(YEAR(DenKalendáře),1,0)),CONCATENATE(\"Den \",DenKalendáře-DATE(YEAR(DenKalendáře),1,0)))","v":"Den 215"},{"$f":"IF(WEEKDAY(DenKalendáře)=ZačátekTýdneHodnota,CONCATENATE(\"Týden \",WEEKNUM(DenKalendáře),\"/Den \",DenKalendáře-DATE(YEAR(DenKalendáře),1,0)),CONCATENATE(\"Den \",DenKalendáře-DATE(YEAR(DenKalendáře),1,0)))","v":"Den 216"}]
[{"$nulls":4},"POZNÁMKY"]
[]
[null,null,{"$f":"DnyATýdny+DATE(KalendářníRok,7,1)-WEEKDAY(DATE(KalendářníRok,7,1),(ZačátekTýdne=\"PO\")+1)+36","v":"2018-08-05"},"2018-08-06"]
[null,null,{"$f":"IF(WEEKDAY(DenKalendáře)=ZačátekTýdneHodnota,CONCATENATE(\"Týden \",WEEKNUM(DenKalendáře),\"/Den \",DenKalendáře-DATE(YEAR(DenKalendáře),1,0)),CONCATENATE(\"Den \",DenKalendáře-DATE(YEAR(DenKalendáře),1,0)))","v":"Týden 32/Den 217"},{"$f":"IF(WEEKDAY(DenKalendáře)=ZačátekTýdneHodnota,CONCATENATE(\"Týden \",WEEKNUM(DenKalendáře),\"/Den \",DenKalendáře-DATE(YEAR(DenKalendáře),1,0)),CONCATENATE(\"Den \",DenKalendáře-DATE(YEAR(DenKalendáře),1,0)))","v":"Den 218"}]

{"sheet":"SRPEN","index":7,"n_rows":20,"n_cols":9,"rows_kept":20,"merged":[[16,2,17,2],[17,4,19,8]]}
[null,"SRPEN",{"$f":"UPPER(TEXT(ZačátekTýdne,\"ddd\"))","v":"NE"},{"$f":"UPPER(TEXT(D3,\"aaa\"))","v":"PO"},"ÚT","ST","ČT","PÁ","SO"]
[null,{"$f":"KalendářníRok","v":2018}]
[null,null,{"$f":"DnyATýdny+DATE(KalendářníRok,8,1)-WEEKDAY(DATE(KalendářníRok,8,1),(ZačátekTýdne=\"PO\")+1)+1","v":"2018-07-29"},"2018-07-30","2018-07-31","2018-08-01","2018-08-02","2018-08-03","2018-08-04"]
[null,null,{"$f":"IF(DAY(DenKalendáře)=1,CONCATENATE(\"Týden \",WEEKNUM(DenKalendáře),\"/Den \",DenKalendáře-DATE(YEAR(DenKalendáře),1,0)),CONCATENATE(\"Den \",DenKalendáře-DATE(YEAR(DenKalendáře),1,0)))","v":"Den 210"},{"$f":"IF(DAY(DenKalendáře)=1,CONCATENATE(\"Týden \",WEEKNUM(DenKalendáře),\"/Den \",DenKalendáře-DATE(YEAR(DenKalendáře),1,0)),CONCATENATE(\"Den \",DenKalendáře-DATE(YEAR(DenKalendáře),1,0)))","v":"Den 211"},{"$f":"IF(DAY(DenKalendáře)=1,CONCATENATE(\"Týden \",WEEKNUM(DenKalendáře),\"/Den \",DenKalendáře-DATE(YEAR(DenKalendáře),1,0)),CONCATENATE(\"Den \",DenKalendáře-DATE(YEAR(DenKalendáře),1,0)))","v":"Den 212"},{"$f":"IF(DAY(DenKalendáře)=1,CONCATENATE(\"Týden \",WEEKNUM(DenKalendáře),\"/Den \",DenKalendáře-DATE(YEAR(DenKalendáře),1,0)),CONCATENATE(\"Den \",DenKalendáře-DATE(YEAR(DenKalendáře),1,0)))","v":"Týden 31/Den 213"},{"$f":"IF(DAY(DenKalendáře)=1,CONCATENATE(\"Týden \",WEEKNUM(DenKalendáře),\"/Den \",DenKalendáře-DATE(YEAR(DenKalendáře),1,0)),CONCATENATE(\"Den \",DenKalendáře-DATE(YEAR(DenKalendáře),1,0)))","v":"Den 214"},{"$f":"IF(DAY(DenKalendáře)=1,CONCATENATE(\"Týden \",WEEKNUM(DenKalendáře),\"/Den \",DenKalendáře-DATE(YEAR(DenKalendáře),1,0)),CONCATENATE(\"Den \",DenKalendáře-DATE(YEAR(DenKalendáře),1,0)))","v":"Den 215"},{"$f":"IF(DAY(DenKalendáře)=1,CONCATENATE(\"Týden \",WEEKNUM(DenKalendáře),\"/Den \",DenKalendáře-DATE(YEAR(DenKalendáře),1,0)),CONCATENATE(\"Den \",DenKalendáře-DATE(YEAR(DenKalendáře),1,0)))","v":"Den 216"}]
[]
[null,null,{"$f":"DnyATýdny+DATE(KalendářníRok,8,1)-WEEKDAY(DATE(KalendářníRok,8,1),(ZačátekTýdne=\"PO\")+1)+8","v":"2018-08-05"},"2018-08-06","2018-08-07","2018-08-08","2018-08-09","2018-08-10","2018-08-11"]
[null,null,{"$f":"IF(WEEKDAY(DenKalendáře)=ZačátekTýdneHodnota,CONCATENATE(\"Týden \",WEEKNUM(DenKalendáře),\"/Den \",DenKalendáře-DATE(YEAR(DenKalendáře),1,0)),CONCATENATE(\"Den \",DenKalendáře-DATE(YEAR(DenKalendáře),1,0)))","v":"Týden 32/Den 217"},{"$f":"IF(WEEKDAY(DenKalendáře)=ZačátekTýdneHodnota,CONCATENATE(\"Týden \",WEEKNUM(DenKalendáře),\"/Den \",DenKalendáře-DATE(YEAR(DenKalendáře),1,0)),CONCATENATE(\"Den \",DenKalendáře-DATE(YEAR(DenKalendáře),1,0)))","v":"Den 218"},{"$f":"IF(WEEKDAY(DenKalendáře)=ZačátekTýdneHodnota,CONCATENATE(\"Týden \",WEEKNUM(DenKalendáře),\"/Den \",DenKalendáře-DATE(YEAR(DenKalendáře),1,0)),CONCATENATE(\"Den \",DenKalendáře-DATE(YEAR(DenKalendáře),1,0)))","v":"Den 219"},{"$f":"IF(WEEKDAY(DenKalendáře)=ZačátekTýdneHodnota,CONCATENATE(\"Týden \",WEEKNUM(DenKalendáře),\"/Den \",DenKalendáře-DATE(YEAR(DenKalendáře),1,0)),CONCATENATE(\"Den \",DenKalendáře-DATE(YEAR(DenKalendáře),1,0)))","v":"Den 220"},{"$f":"IF(WEEKDAY(DenKalendáře)=ZačátekTýdneHodnota,CONCATENATE(\"Týden \",WEEKNUM(DenKalendáře),\"/Den \",DenKalendáře-DATE(YEAR(DenKalendáře),1,0)),CONCATENATE(\"Den \",DenKalendáře-DATE(YEAR(DenKalendáře),1,0)))","v":"Den 221"},{"$f":"IF(WEEKDAY(DenKalendáře)=ZačátekTýdneHodnota,CONCATENATE(\"Týden \",WEEKNUM(DenKalendáře),\"/Den \",DenKalendáře-DATE(YEAR(DenKalendáře),1,0)),CONCATENATE(\"Den \",DenKalendáře-DATE(YEAR(DenKalendáře),1,0)))","v":"Den 222"},{"$f":"IF(WEEKDAY(DenKalendáře)=ZačátekTýdneHodnota,CONCATENATE(\"Týden \",WEEKNUM(DenKalendáře),\"/Den \",DenKalendáře-DATE(YEAR(DenKalendáře),1,0)),CONCATENATE(\"Den \",DenKalendáře-DATE(YEAR(DenKalendáře),1,0)))","v":"Den 223"}]
[]
[null,null,{"$f":"DnyATýdny+DATE(KalendářníRok,8,1)-WEEKDAY(DATE(KalendářníRok,8,1),(ZačátekTýdne=\"PO\")+1)+15","v":"2018-08-12"},"2018-08-13","2018-08-14","2018-08-15","2018-08-16","2018-08-17","2018-08-18"]
[null,null,{"$f":"IF(WEEKDAY(DenKalendáře)=ZačátekTýdneHodnota,CONCATENATE(\"Týden \",WEEKNUM(DenKalendáře),\"/Den \",DenKalendáře-DATE(YEAR(DenKalendáře),1,0)),CONCATENATE(\"Den \",DenKalendáře-DATE(YEAR(DenKalendáře),1,0)))","v":"Týden 33/Den 224"},{"$f":"IF(WEEKDAY(DenKalendáře)=ZačátekTýdneHodnota,CONCATENATE(\"Týden \",WEEKNUM(DenKalendáře),\"/Den \",DenKalendáře-DATE(YEAR(DenKalendáře),1,0)),CONCATENATE(\"Den \",DenKalendáře-DATE(YEAR(DenKalendáře),1,0)))","v":"Den 225"},{"$f":"IF(WEEKDAY(DenKalendáře)=ZačátekTýdneHodnota,CONCATENATE(\"Týden \",WEEKNUM(DenKalendáře),\"/Den \",DenKalendáře-DATE(YEAR(DenKalendáře),1,0)),CONCATENATE(\"Den \",DenKalendáře-DATE(YEAR(DenKalendáře),1,0)))","v":"Den 226"},{"$f":"IF(WEEKDAY(DenKalendáře)=ZačátekTýdneHodnota,CONCATENATE(\"Týden \",WEEKNUM(DenKalendáře),\"/Den \",DenKalendáře-DATE(YEAR(DenKalendáře),1,0)),CONCATENATE(\"Den \",DenKalendáře-DATE(YEAR(DenKalendáře),1,0)))","v":"Den 227"},{"$f":"IF(WEEKDAY(DenKalendáře)=ZačátekTýdneHodnota,CONCATENATE(\"Týden \",WEEKNUM(DenKalendáře),\"/Den \",DenKalendáře-DATE(YEAR(DenKalendáře),1,0)),CONCATENATE(\"Den \",DenKalendáře-DATE(YEAR(DenKalendáře),1,0)))","v":"Den 228"},{"$f":"IF(WEEKDAY(DenKalendáře)=ZačátekTýdneHodnota,CONCATENATE(\"Týden \",WEEKNUM(DenKalendáře),\"/Den \",DenKalendáře-DATE(YEAR(DenKalendáře),1,0)),CONCATENATE(\"Den \",DenKalendáře-DATE(YEAR(DenKalendáře),1,0)))","v":"Den 229"},{"$f":"IF(WEEKDAY(DenKalendáře)=ZačátekTýdneHodnota,CONCATENATE(\"Týden \",WEEKNUM(DenKalendáře),\"/Den \",DenKalendáře-DATE(YEAR(DenKalendáře),1,0)),CONCATENATE(\"Den \",DenKalendáře-DATE(YEAR(DenKalendáře),1,0)))","v":"Den 230"}]
[]
[null,null,{"$f":"DnyATýdny+DATE(KalendářníRok,8,1)-WEEKDAY(DATE(KalendářníRok,8,1),(ZačátekTýdne=\"PO\")+1)+22","v":"2018-08-19"},"2018-08-20","2018-08-21","2018-08-22","2018-08-23","2018-08-24","2018-08-25"]
[null,null,{"$f":"IF(WEEKDAY(DenKalendáře)=ZačátekTýdneHodnota,CONCATENATE(\"Týden \",WEEKNUM(DenKalendáře),\"/Den \",DenKalendáře-DATE(YEAR(DenKalendáře),1,0)),CONCATENATE(\"Den \",DenKalendáře-DATE(YEAR(DenKalendáře),1,0)))","v":"Týden 34/Den 231"},{"$f":"IF(WEEKDAY(DenKalendáře)=ZačátekTýdneHodnota,CONCATENATE(\"Týden \",WEEKNUM(DenKalendáře),\"/Den \",DenKalendáře-DATE(YEAR(DenKalendáře),1,0)),CONCATENATE(\"Den \",DenKalendáře-DATE(YEAR(DenKalendáře),1,0)))","v":"Den 232"},{"$f":"IF(WEEKDAY(DenKalendáře)=ZačátekTýdneHodnota,CONCATENATE(\"Týden \",WEEKNUM(DenKalendáře),\"/Den \",DenKalendáře-DATE(YEAR(DenKalendáře),1,0)),CONCATENATE(\"Den \",DenKalendáře-DATE(YEAR(DenKalendáře),1,0)))","v":"Den 233"},{"$f":"IF(WEEKDAY(DenKalendáře)=ZačátekTýdneHodnota,CONCATENATE(\"Týden \",WEEKNUM(DenKalendáře),\"/Den \",DenKalendáře-DATE(YEAR(DenKalendáře),1,0)),CONCATENATE(\"Den \",DenKalendáře-DATE(YEAR(DenKalendáře),1,0)))","v":"Den 234"},{"$f":"IF(WEEKDAY(DenKalendáře)=ZačátekTýdneHodnota,CONCATENATE(\"Týden \",WEEKNUM(DenKalendáře),\"/Den \",DenKalendáře-DATE(YEAR(DenKalendáře),1,0)),CONCATENATE(\"Den \",DenKalendáře-DATE(YEAR(DenKalendáře),1,0)))","v":"Den 235"},{"$f":"IF(WEEKDAY(DenKalendáře)=ZačátekTýdneHodnota,CONCATENATE(\"Týden \",WEEKNUM(DenKalendáře),\"/Den \",DenKalendáře-DATE(YEAR(DenKalendáře),1,0)),CONCATENATE(\"Den \",DenKalendáře-DATE(YEAR(DenKalendáře),1,0)))","v":"Den 236"},{"$f":"IF(WEEKDAY(DenKalendáře)=ZačátekTýdneHodnota,CONCATENATE(\"Týden \",WEEKNUM(DenKalendáře),\"/Den \",DenKalendáře-DATE(YEAR(DenKalendáře),1,0)),CONCATENATE(\"Den \",DenKalendáře-DATE(YEAR(DenKalendáře),1,0)))","v":"Den 237"}]
[]
[null,null,{"$f":"DnyATýdny+DATE(KalendářníRok,8,1)-WEEKDAY(DATE(KalendářníRok,8,1),(ZačátekTýdne=\"PO\")+1)+29","v":"2018-08-26"},"2018-08-27","2018-08-28","2018-08-29","2018-08-30","2018-08-31","2018-09-01"]
[null,null,{"$f":"IF(WEEKDAY(DenKalendáře)=ZačátekTýdneHodnota,CONCATENATE(\"Týden \",WEEKNUM(DenKalendáře),\"/Den \",DenKalendáře-DATE(YEAR(DenKalendáře),1,0)),CONCATENATE(\"Den \",DenKalendáře-DATE(YEAR(DenKalendáře),1,0)))","v":"Týden 35/Den 238"},{"$f":"IF(WEEKDAY(DenKalendáře)=ZačátekTýdneHodnota,CONCATENATE(\"Týden \",WEEKNUM(DenKalendáře),\"/Den \",DenKalendáře-DATE(YEAR(DenKalendáře),1,0)),CONCATENATE(\"Den \",DenKalendáře-DATE(YEAR(DenKalendáře),1,0)))","v":"Den 239"},{"$f":"IF(WEEKDAY(DenKalendáře)=ZačátekTýdneHodnota,CONCATENATE(\"Týden \",WEEKNUM(DenKalendáře),\"/Den \",DenKalendáře-DATE(YEAR(DenKalendáře),1,0)),CONCATENATE(\"Den \",DenKalendáře-DATE(YEAR(DenKalendáře),1,0)))","v":"Den 240"},{"$f":"IF(WEEKDAY(DenKalendáře)=ZačátekTýdneHodnota,CONCATENATE(\"Týden \",WEEKNUM(DenKalendáře),\"/Den \",DenKalendáře-DATE(YEAR(DenKalendáře),1,0)),CONCATENATE(\"Den \",DenKalendáře-DATE(YEAR(DenKalendáře),1,0)))","v":"Den 241"},{"$f":"IF(WEEKDAY(DenKalendáře)=ZačátekTýdneHodnota,CONCATENATE(\"Týden \",WEEKNUM(DenKalendáře),\"/Den \",DenKalendáře-DATE(YEAR(DenKalendáře),1,0)),CONCATENATE(\"Den \",DenKalendáře-DATE(YEAR(DenKalendáře),1,0)))","v":"Den 242"},{"$f":"IF(WEEKDAY(DenKalendáře)=ZačátekTýdneHodnota,CONCATENATE(\"Týden \",WEEKNUM(DenKalendáře),\"/Den \",DenKalendáře-DATE(YEAR(DenKalendáře),1,0)),CONCATENATE(\"Den \",DenKalendáře-DATE(YEAR(DenKalendáře),1,0)))","v":"Den 243"},{"$f":"IF(WEEKDAY(DenKalendáře)=ZačátekTýdneHodnota,CONCATENATE(\"Týden \",WEEKNUM(DenKalendáře),\"/Den \",DenKalendáře-DATE(YEAR(DenKalendáře),1,0)),CONCATENATE(\"Den \",DenKalendáře-DATE(YEAR(DenKalendáře),1,0)))","v":"Den 244"}]
[{"$nulls":4},"POZNÁMKY"]
[]
[null,null,{"$f":"DnyATýdny+DATE(KalendářníRok,8,1)-WEEKDAY(DATE(KalendářníRok,8,1),(ZačátekTýdne=\"PO\")+1)+36","v":"2018-09-02"},"2018-09-03"]
[null,null,{"$f":"IF(WEEKDAY(DenKalendáře)=ZačátekTýdneHodnota,CONCATENATE(\"Týden \",WEEKNUM(DenKalendáře),\"/Den \",DenKalendáře-DATE(YEAR(DenKalendáře),1,0)),CONCATENATE(\"Den \",DenKalendáře-DATE(YEAR(DenKalendáře),1,0)))","v":"Týden 36/Den 245"},{"$f":"IF(WEEKDAY(DenKalendáře)=ZačátekTýdneHodnota,CONCATENATE(\"Týden \",WEEKNUM(DenKalendáře),\"/Den \",DenKalendáře-DATE(YEAR(DenKalendáře),1,0)),CONCATENATE(\"Den \",DenKalendáře-DATE(YEAR(DenKalendáře),1,0)))","v":"Den 246"}]

{"sheet":"ZÁŘÍ","index":8,"n_rows":20,"n_cols":9,"rows_kept":20,"merged":[[16,2,17,2],[17,4,19,8]]}
[null,"ZÁŘÍ",{"$f":"UPPER(TEXT(ZačátekTýdne,\"ddd\"))","v":"NE"},{"$f":"UPPER(TEXT(D3,\"aaa\"))","v":"PO"},"ÚT","ST","ČT","PÁ","SO"]
[null,{"$f":"KalendářníRok","v":2018}]
[null,null,{"$f":"DnyATýdny+DATE(KalendářníRok,9,1)-WEEKDAY(DATE(KalendářníRok,9,1),(ZačátekTýdne=\"PO\")+1)+1","v":"2018-08-26"},"2018-08-27","2018-08-28","2018-08-29","2018-08-30","2018-08-31","2018-09-01"]
[null,null,{"$f":"IF(DAY(DenKalendáře)=1,CONCATENATE(\"Týden \",WEEKNUM(DenKalendáře),\"/Den \",DenKalendáře-DATE(YEAR(DenKalendáře),1,0)),CONCATENATE(\"Den \",DenKalendáře-DATE(YEAR(DenKalendáře),1,0)))","v":"Den 238"},{"$f":"IF(DAY(DenKalendáře)=1,CONCATENATE(\"Týden \",WEEKNUM(DenKalendáře),\"/Den \",DenKalendáře-DATE(YEAR(DenKalendáře),1,0)),CONCATENATE(\"Den \",DenKalendáře-DATE(YEAR(DenKalendáře),1,0)))","v":"Den 239"},{"$f":"IF(DAY(DenKalendáře)=1,CONCATENATE(\"Týden \",WEEKNUM(DenKalendáře),\"/Den \",DenKalendáře-DATE(YEAR(DenKalendáře),1,0)),CONCATENATE(\"Den \",DenKalendáře-DATE(YEAR(DenKalendáře),1,0)))","v":"Den 240"},{"$f":"IF(DAY(DenKalendáře)=1,CONCATENATE(\"Týden \",WEEKNUM(DenKalendáře),\"/Den \",DenKalendáře-DATE(YEAR(DenKalendáře),1,0)),CONCATENATE(\"Den \",DenKalendáře-DATE(YEAR(DenKalendáře),1,0)))","v":"Den 241"},{"$f":"IF(DAY(DenKalendáře)=1,CONCATENATE(\"Týden \",WEEKNUM(DenKalendáře),\"/Den \",DenKalendáře-DATE(YEAR(DenKalendáře),1,0)),CONCATENATE(\"Den \",DenKalendáře-DATE(YEAR(DenKalendáře),1,0)))","v":"Den 242"},{"$f":"IF(DAY(DenKalendáře)=1,CONCATENATE(\"Týden \",WEEKNUM(DenKalendáře),\"/Den \",DenKalendáře-DATE(YEAR(DenKalendáře),1,0)),CONCATENATE(\"Den \",DenKalendáře-DATE(YEAR(DenKalendáře),1,0)))","v":"Den 243"},{"$f":"IF(DAY(DenKalendáře)=1,CONCATENATE(\"Týden \",WEEKNUM(DenKalendáře),\"/Den \",DenKalendáře-DATE(YEAR(DenKalendáře),1,0)),CONCATENATE(\"Den \",DenKalendáře-DATE(YEAR(DenKalendáře),1,0)))","v":"Týden 35/Den 244"}]
[]
[null,null,{"$f":"DnyATýdny+DATE(KalendářníRok,9,1)-WEEKDAY(DATE(KalendářníRok,9,1),(ZačátekTýdne=\"PO\")+1)+8","v":"2018-09-02"},"2018-09-03","2018-09-04","2018-09-05","2018-09-06","2018-09-07","2018-09-08"]
[null,null,{"$f":"IF(WEEKDAY(DenKalendáře)=ZačátekTýdneHodnota,CONCATENATE(\"Týden \",WEEKNUM(DenKalendáře),\"/Den \",DenKalendáře-DATE(YEAR(DenKalendáře),1,0)),CONCATENATE(\"Den \",DenKalendáře-DATE(YEAR(DenKalendáře),1,0)))","v":"Týden 36/Den 245"},{"$f":"IF(WEEKDAY(DenKalendáře)=ZačátekTýdneHodnota,CONCATENATE(\"Týden \",WEEKNUM(DenKalendáře),\"/Den \",DenKalendáře-DATE(YEAR(DenKalendáře),1,0)),CONCATENATE(\"Den \",DenKalendáře-DATE(YEAR(DenKalendáře),1,0)))","v":"Den 246"},{"$f":"IF(WEEKDAY(DenKalendáře)=ZačátekTýdneHodnota,CONCATENATE(\"Týden \",WEEKNUM(DenKalendáře),\"/Den \",DenKalendáře-DATE(YEAR(DenKalendáře),1,0)),CONCATENATE(\"Den \",DenKalendáře-DATE(YEAR(DenKalendáře),1,0)))","v":"Den 247"},{"$f":"IF(WEEKDAY(DenKalendáře)=ZačátekTýdneHodnota,CONCATENATE(\"Týden \",WEEKNUM(DenKalendáře),\"/Den \",DenKalendáře-DATE(YEAR(DenKalendáře),1,0)),CONCATENATE(\"Den \",DenKalendáře-DATE(YEAR(DenKalendáře),1,0)))","v":"Den 248"},{"$f":"IF(WEEKDAY(DenKalendáře)=ZačátekTýdneHodnota,CONCATENATE(\"Týden \",WEEKNUM(DenKalendáře),\"/Den \",DenKalendáře-DATE(YEAR(DenKalendáře),1,0)),CONCATENATE(\"Den \",DenKalendáře-DATE(YEAR(DenKalendáře),1,0)))","v":"Den 249"},{"$f":"IF(WEEKDAY(DenKalendáře)=ZačátekTýdneHodnota,CONCATENATE(\"Týden \",WEEKNUM(DenKalendáře),\"/Den \",DenKalendáře-DATE(YEAR(DenKalendáře),1,0)),CONCATENATE(\"Den \",DenKalendáře-DATE(YEAR(DenKalendáře),1,0)))","v":"Den 250"},{"$f":"IF(WEEKDAY(DenKalendáře)=ZačátekTýdneHodnota,CONCATENATE(\"Týden \",WEEKNUM(DenKalendáře),\"/Den \",DenKalendáře-DATE(YEAR(DenKalendáře),1,0)),CONCATENATE(\"Den \",DenKalendáře-DATE(YEAR(DenKalendáře),1,0)))","v":"Den 251"}]
[]
[null,null,{"$f":"DnyATýdny+DATE(KalendářníRok,9,1)-WEEKDAY(DATE(KalendářníRok,9,1),(ZačátekTýdne=\"PO\")+1)+15","v":"2018-09-09"},"2018-09-10","2018-09-11","2018-09-12","2018-09-13","2018-09-14","2018-09-15"]
[null,null,{"$f":"IF(WEEKDAY(DenKalendáře)=ZačátekTýdneHodnota,CONCATENATE(\"Týden \",WEEKNUM(DenKalendáře),\"/Den \",DenKalendáře-DATE(YEAR(DenKalendáře),1,0)),CONCATENATE(\"Den \",DenKalendáře-DATE(YEAR(DenKalendáře),1,0)))","v":"Týden 37/Den 252"},{"$f":"IF(WEEKDAY(DenKalendáře)=ZačátekTýdneHodnota,CONCATENATE(\"Týden \",WEEKNUM(DenKalendáře),\"/Den \",DenKalendáře-DATE(YEAR(DenKalendáře),1,0)),CONCATENATE(\"Den \",DenKalendáře-DATE(YEAR(DenKalendáře),1,0)))","v":"Den 253"},{"$f":"IF(WEEKDAY(DenKalendáře)=ZačátekTýdneHodnota,CONCATENATE(\"Týden \",WEEKNUM(DenKalendáře),\"/Den \",DenKalendáře-DATE(YEAR(DenKalendáře),1,0)),CONCATENATE(\"Den \",DenKalendáře-DATE(YEAR(DenKalendáře),1,0)))","v":"Den 254"},{"$f":"IF(WEEKDAY(DenKalendáře)=ZačátekTýdneHodnota,CONCATENATE(\"Týden \",WEEKNUM(DenKalendáře),\"/Den \",DenKalendáře-DATE(YEAR(DenKalendáře),1,0)),CONCATENATE(\"Den \",DenKalendáře-DATE(YEAR(DenKalendáře),1,0)))","v":"Den 255"},{"$f":"IF(WEEKDAY(DenKalendáře)=ZačátekTýdneHodnota,CONCATENATE(\"Týden \",WEEKNUM(DenKalendáře),\"/Den \",DenKalendáře-DATE(YEAR(DenKalendáře),1,0)),CONCATENATE(\"Den \",DenKalendáře-DATE(YEAR(DenKalendáře),1,0)))","v":"Den 256"},{"$f":"IF(WEEKDAY(DenKalendáře)=ZačátekTýdneHodnota,CONCATENATE(\"Týden \",WEEKNUM(DenKalendáře),\"/Den \",DenKalendáře-DATE(YEAR(DenKalendáře),1,0)),CONCATENATE(\"Den \",DenKalendáře-DATE(YEAR(DenKalendáře),1,0)))","v":"Den 257"},{"$f":"IF(WEEKDAY(DenKalendáře)=ZačátekTýdneHodnota,CONCATENATE(\"Týden \",WEEKNUM(DenKalendáře),\"/Den \",DenKalendáře-DATE(YEAR(DenKalendáře),1,0)),CONCATENATE(\"Den \",DenKalendáře-DATE(YEAR(DenKalendáře),1,0)))","v":"Den 258"}]
[]
[null,null,{"$f":"DnyATýdny+DATE(KalendářníRok,9,1)-WEEKDAY(DATE(KalendářníRok,9,1),(ZačátekTýdne=\"PO\")+1)+22","v":"2018-09-16"},"2018-09-17","2018-09-18","2018-09-19","2018-09-20","2018-09-21","2018-09-22"]
[null,null,{"$f":"IF(WEEKDAY(DenKalendáře)=ZačátekTýdneHodnota,CONCATENATE(\"Týden \",WEEKNUM(DenKalendáře),\"/Den \",DenKalendáře-DATE(YEAR(DenKalendáře),1,0)),CONCATENATE(\"Den \",DenKalendáře-DATE(YEAR(DenKalendáře),1,0)))","v":"Týden 38/Den 259"},{"$f":"IF(WEEKDAY(DenKalendáře)=ZačátekTýdneHodnota,CONCATENATE(\"Týden \",WEEKNUM(DenKalendáře),\"/Den \",DenKalendáře-DATE(YEAR(DenKalendáře),1,0)),CONCATENATE(\"Den \",DenKalendáře-DATE(YEAR(DenKalendáře),1,0)))","v":"Den 260"},{"$f":"IF(WEEKDAY(DenKalendáře)=ZačátekTýdneHodnota,CONCATENATE(\"Týden \",WEEKNUM(DenKalendáře),\"/Den \",DenKalendáře-DATE(YEAR(DenKalendáře),1,0)),CONCATENATE(\"Den \",DenKalendáře-DATE(YEAR(DenKalendáře),1,0)))","v":"Den 261"},{"$f":"IF(WEEKDAY(DenKalendáře)=ZačátekTýdneHodnota,CONCATENATE(\"Týden \",WEEKNUM(DenKalendáře),\"/Den \",DenKalendáře-DATE(YEAR(DenKalendáře),1,0)),CONCATENATE(\"Den \",DenKalendáře-DATE(YEAR(DenKalendáře),1,0)))","v":"Den 262"},{"$f":"IF(WEEKDAY(DenKalendáře)=ZačátekTýdneHodnota,CONCATENATE(\"Týden \",WEEKNUM(DenKalendáře),\"/Den \",DenKalendáře-DATE(YEAR(DenKalendáře),1,0)),CONCATENATE(\"Den \",DenKalendáře-DATE(YEAR(DenKalendáře),1,0)))","v":"Den 263"},{"$f":"IF(WEEKDAY(DenKalendáře)=ZačátekTýdneHodnota,CONCATENATE(\"Týden \",WEEKNUM(DenKalendáře),\"/Den \",DenKalendáře-DATE(YEAR(DenKalendáře),1,0)),CONCATENATE(\"Den \",DenKalendáře-DATE(YEAR(DenKalendáře),1,0)))","v":"Den 264"},{"$f":"IF(WEEKDAY(DenKalendáře)=ZačátekTýdneHodnota,CONCATENATE(\"Týden \",WEEKNUM(DenKalendáře),\"/Den \",DenKalendáře-DATE(YEAR(DenKalendáře),1,0)),CONCATENATE(\"Den \",DenKalendáře-DATE(YEAR(DenKalendáře),1,0)))","v":"Den 265"}]
[]
[null,null,{"$f":"DnyATýdny+DATE(KalendářníRok,9,1)-WEEKDAY(DATE(KalendářníRok,9,1),(ZačátekTýdne=\"PO\")+1)+29","v":"2018-09-23"},"2018-09-24","2018-09-25","2018-09-26","2018-09-27","2018-09-28","2018-09-29"]
[null,null,{"$f":"IF(WEEKDAY(DenKalendáře)=ZačátekTýdneHodnota,CONCATENATE(\"Týden \",WEEKNUM(DenKalendáře),\"/Den \",DenKalendáře-DATE(YEAR(DenKalendáře),1,0)),CONCATENATE(\"Den \",DenKalendáře-DATE(YEAR(DenKalendáře),1,0)))","v":"Týden 39/Den 266"},{"$f":"IF(WEEKDAY(DenKalendáře)=ZačátekTýdneHodnota,CONCATENATE(\"Týden \",WEEKNUM(DenKalendáře),\"/Den \",DenKalendáře-DATE(YEAR(DenKalendáře),1,0)),CONCATENATE(\"Den \",DenKalendáře-DATE(YEAR(DenKalendáře),1,0)))","v":"Den 267"},{"$f":"IF(WEEKDAY(DenKalendáře)=ZačátekTýdneHodnota,CONCATENATE(\"Týden \",WEEKNUM(DenKalendáře),\"/Den \",DenKalendáře-DATE(YEAR(DenKalendáře),1,0)),CONCATENATE(\"Den \",DenKalendáře-DATE(YEAR(DenKalendáře),1,0)))","v":"Den 268"},{"$f":"IF(WEEKDAY(DenKalendáře)=ZačátekTýdneHodnota,CONCATENATE(\"Týden \",WEEKNUM(DenKalendáře),\"/Den \",DenKalendáře-DATE(YEAR(DenKalendáře),1,0)),CONCATENATE(\"Den \",DenKalendáře-DATE(YEAR(DenKalendáře),1,0)))","v":"Den 269"},{"$f":"IF(WEEKDAY(DenKalendáře)=ZačátekTýdneHodnota,CONCATENATE(\"Týden \",WEEKNUM(DenKalendáře),\"/Den \",DenKalendáře-DATE(YEAR(DenKalendáře),1,0)),CONCATENATE(\"Den \",DenKalendáře-DATE(YEAR(DenKalendáře),1,0)))","v":"Den 270"},{"$f":"IF(WEEKDAY(DenKalendáře)=ZačátekTýdneHodnota,CONCATENATE(\"Týden \",WEEKNUM(DenKalendáře),\"/Den \",DenKalendáře-DATE(YEAR(DenKalendáře),1,0)),CONCATENATE(\"Den \",DenKalendáře-DATE(YEAR(DenKalendáře),1,0)))","v":"Den 271"},{"$f":"IF(WEEKDAY(DenKalendáře)=ZačátekTýdneHodnota,CONCATENATE(\"Týden \",WEEKNUM(DenKalendáře),\"/Den \",DenKalendáře-DATE(YEAR(DenKalendáře),1,0)),CONCATENATE(\"Den \",DenKalendáře-DATE(YEAR(DenKalendáře),1,0)))","v":"Den 272"}]
[{"$nulls":4},"POZNÁMKY"]
[]
[null,null,{"$f":"DnyATýdny+DATE(KalendářníRok,9,1)-WEEKDAY(DATE(KalendářníRok,9,1),(ZačátekTýdne=\"PO\")+1)+36","v":"2018-09-30"},"2018-10-01"]
[null,null,{"$f":"IF(WEEKDAY(DenKalendáře)=ZačátekTýdneHodnota,CONCATENATE(\"Týden \",WEEKNUM(DenKalendáře),\"/Den \",DenKalendáře-DATE(YEAR(DenKalendáře),1,0)),CONCATENATE(\"Den \",DenKalendáře-DATE(YEAR(DenKalendáře),1,0)))","v":"Týden 40/Den 273"},{"$f":"IF(WEEKDAY(DenKalendáře)=ZačátekTýdneHodnota,CONCATENATE(\"Týden \",WEEKNUM(DenKalendáře),\"/Den \",DenKalendáře-DATE(YEAR(DenKalendáře),1,0)),CONCATENATE(\"Den \",DenKalendáře-DATE(YEAR(DenKalendáře),1,0)))","v":"Den 274"}]

{"sheet":"ŘÍJEN","index":9,"n_rows":20,"n_cols":9,"rows_kept":20,"merged":[[16,2,17,2],[17,4,19,8]]}
[null,"ŘÍJEN",{"$f":"UPPER(TEXT(ZačátekTýdne,\"ddd\"))","v":"NE"},{"$f":"UPPER(TEXT(D3,\"aaa\"))","v":"PO"},"ÚT","ST","ČT","PÁ","SO"]
[null,{"$f":"KalendářníRok","v":2018}]
[null,null,{"$f":"DnyATýdny+DATE(KalendářníRok,10,1)-WEEKDAY(DATE(KalendářníRok,10,1),(ZačátekTýdne=\"PO\")+1)+1","v":"2018-09-30"},"2018-10-01","2018-10-02","2018-10-03","2018-10-04","2018-10-05","2018-10-06"]
[null,null,{"$f":"IF(DAY(DenKalendáře)=1,CONCATENATE(\"Týden \",WEEKNUM(DenKalendáře),\"/Den \",DenKalendáře-DATE(YEAR(DenKalendáře),1,0)),CONCATENATE(\"Den \",DenKalendáře-DATE(YEAR(DenKalendáře),1,0)))","v":"Den 273"},{"$f":"IF(DAY(DenKalendáře)=1,CONCATENATE(\"Týden \",WEEKNUM(DenKalendáře),\"/Den \",DenKalendáře-DATE(YEAR(DenKalendáře),1,0)),CONCATENATE(\"Den \",DenKalendáře-DATE(YEAR(DenKalendáře),1,0)))","v":"Týden 40/Den 274"},{"$f":"IF(DAY(DenKalendáře)=1,CONCATENATE(\"Týden \",WEEKNUM(DenKalendáře),\"/Den \",DenKalendáře-DATE(YEAR(DenKalendáře),1,0)),CONCATENATE(\"Den \",DenKalendáře-DATE(YEAR(DenKalendáře),1,0)))","v":"Den 275"},{"$f":"IF(DAY(DenKalendáře)=1,CONCATENATE(\"Týden \",WEEKNUM(DenKalendáře),\"/Den \",DenKalendáře-DATE(YEAR(DenKalendáře),1,0)),CONCATENATE(\"Den \",DenKalendáře-DATE(YEAR(DenKalendáře),1,0)))","v":"Den 276"},{"$f":"IF(DAY(DenKalendáře)=1,CONCATENATE(\"Týden \",WEEKNUM(DenKalendáře),\"/Den \",DenKalendáře-DATE(YEAR(DenKalendáře),1,0)),CONCATENATE(\"Den \",DenKalendáře-DATE(YEAR(DenKalendáře),1,0)))","v":"Den 277"},{"$f":"IF(DAY(DenKalendáře)=1,CONCATENATE(\"Týden \",WEEKNUM(DenKalendáře),\"/Den \",DenKalendáře-DATE(YEAR(DenKalendáře),1,0)),CONCATENATE(\"Den \",DenKalendáře-DATE(YEAR(DenKalendáře),1,0)))","v":"Den 278"},{"$f":"IF(DAY(DenKalendáře)=1,CONCATENATE(\"Týden \",WEEKNUM(DenKalendáře),\"/Den \",DenKalendáře-DATE(YEAR(DenKalendáře),1,0)),CONCATENATE(\"Den \",DenKalendáře-DATE(YEAR(DenKalendáře),1,0)))","v":"Den 279"}]
[]
[null,null,{"$f":"DnyATýdny+DATE(KalendářníRok,10,1)-WEEKDAY(DATE(KalendářníRok,10,1),(ZačátekTýdne=\"PO\")+1)+8","v":"2018-10-07"},"2018-10-08","2018-10-09","2018-10-10","2018-10-11","2018-10-12","2018-10-13"]
[null,null,{"$f":"IF(WEEKDAY(DenKalendáře)=ZačátekTýdneHodnota,CONCATENATE(\"Týden \",WEEKNUM(DenKalendáře),\"/Den \",DenKalendáře-DATE(YEAR(DenKalendáře),1,0)),CONCATENATE(\"Den \",DenKalendáře-DATE(YEAR(DenKalendáře),1,0)))","v":"Týden 41/Den 280"},{"$f":"IF(WEEKDAY(DenKalendáře)=ZačátekTýdneHodnota,CONCATENATE(\"Týden \",WEEKNUM(DenKalendáře),\"/Den \",DenKalendáře-DATE(YEAR(DenKalendáře),1,0)),CONCATENATE(\"Den \",DenKalendáře-DATE(YEAR(DenKalendáře),1,0)))","v":"Den 281"},{"$f":"IF(WEEKDAY(DenKalendáře)=ZačátekTýdneHodnota,CONCATENATE(\"Týden \",WEEKNUM(DenKalendáře),\"/Den \",DenKalendáře-DATE(YEAR(DenKalendáře),1,0)),CONCATENATE(\"Den \",DenKalendáře-DATE(YEAR(DenKalendáře),1,0)))","v":"Den 282"},{"$f":"IF(WEEKDAY(DenKalendáře)=ZačátekTýdneHodnota,CONCATENATE(\"Týden \",WEEKNUM(DenKalendáře),\"/Den \",DenKalendáře-DATE(YEAR(DenKalendáře),1,0)),CONCATENATE(\"Den \",DenKalendáře-DATE(YEAR(DenKalendáře),1,0)))","v":"Den 283"},{"$f":"IF(WEEKDAY(DenKalendáře)=ZačátekTýdneHodnota,CONCATENATE(\"Týden \",WEEKNUM(DenKalendáře),\"/Den \",DenKalendáře-DATE(YEAR(DenKalendáře),1,0)),CONCATENATE(\"Den \",DenKalendáře-DATE(YEAR(DenKalendáře),1,0)))","v":"Den 284"},{"$f":"IF(WEEKDAY(DenKalendáře)=ZačátekTýdneHodnota,CONCATENATE(\"Týden \",WEEKNUM(DenKalendáře),\"/Den \",DenKalendáře-DATE(YEAR(DenKalendáře),1,0)),CONCATENATE(\"Den \",DenKalendáře-DATE(YEAR(DenKalendáře),1,0)))","v":"Den 285"},{"$f":"IF(WEEKDAY(DenKalendáře)=ZačátekTýdneHodnota,CONCATENATE(\"Týden \",WEEKNUM(DenKalendáře),\"/Den \",DenKalendáře-DATE(YEAR(DenKalendáře),1,0)),CONCATENATE(\"Den \",DenKalendáře-DATE(YEAR(DenKalendáře),1,0)))","v":"Den 286"}]
[]
[null,null,{"$f":"DnyATýdny+DATE(KalendářníRok,10,1)-WEEKDAY(DATE(KalendářníRok,10,1),(ZačátekTýdne=\"PO\")+1)+15","v":"2018-10-14"},"2018-10-15","2018-10-16","2018-10-17","2018-10-18","2018-10-19","2018-10-20"]
[null,null,{"$f":"IF(WEEKDAY(DenKalendáře)=ZačátekTýdneHodnota,CONCATENATE(\"Týden \",WEEKNUM(DenKalendáře),\"/Den \",DenKalendáře-DATE(YEAR(DenKalendáře),1,0)),CONCATENATE(\"Den \",DenKalendáře-DATE(YEAR(DenKalendáře),1,0)))","v":"Týden 42/Den 287"},{"$f":"IF(WEEKDAY(DenKalendáře)=ZačátekTýdneHodnota,CONCATENATE(\"Týden \",WEEKNUM(DenKalendáře),\"/Den \",DenKalendáře-DATE(YEAR(DenKalendáře),1,0)),CONCATENATE(\"Den \",DenKalendáře-DATE(YEAR(DenKalendáře),1,0)))","v":"Den 288"},{"$f":"IF(WEEKDAY(DenKalendáře)=ZačátekTýdneHodnota,CONCATENATE(\"Týden \",WEEKNUM(DenKalendáře),\"/Den \",DenKalendáře-DATE(YEAR(DenKalendáře),1,0)),CONCATENATE(\"Den \",DenKalendáře-DATE(YEAR(DenKalendáře),1,0)))","v":"Den 289"},{"$f":"IF(WEEKDAY(DenKalendáře)=ZačátekTýdneHodnota,CONCATENATE(\"Týden \",WEEKNUM(DenKalendáře),\"/Den \",DenKalendáře-DATE(YEAR(DenKalendáře),1,0)),CONCATENATE(\"Den \",DenKalendáře-DATE(YEAR(DenKalendáře),1,0)))","v":"Den 290"},{"$f":"IF(WEEKDAY(DenKalendáře)=ZačátekTýdneHodnota,CONCATENATE(\"Týden \",WEEKNUM(DenKalendáře),\"/Den \",DenKalendáře-DATE(YEAR(DenKalendáře),1,0)),CONCATENATE(\"Den \",DenKalendáře-DATE(YEAR(DenKalendáře),1,0)))","v":"Den 291"},{"$f":"IF(WEEKDAY(DenKalendáře)=ZačátekTýdneHodnota,CONCATENATE(\"Týden \",WEEKNUM(DenKalendáře),\"/Den \",DenKalendáře-DATE(YEAR(DenKalendáře),1,0)),CONCATENATE(\"Den \",DenKalendáře-DATE(YEAR(DenKalendáře),1,0)))","v":"Den 292"},{"$f":"IF(WEEKDAY(DenKalendáře)=ZačátekTýdneHodnota,CONCATENATE(\"Týden \",WEEKNUM(DenKalendáře),\"/Den \",DenKalendáře-DATE(YEAR(DenKalendáře),1,0)),CONCATENATE(\"Den \",DenKalendáře-DATE(YEAR(DenKalendáře),1,0)))","v":"Den 293"}]
[]
[null,null,{"$f":"DnyATýdny+DATE(KalendářníRok,10,1)-WEEKDAY(DATE(KalendářníRok,10,1),(ZačátekTýdne=\"PO\")+1)+22","v":"2018-10-21"},"2018-10-22","2018-10-23","2018-10-24","2018-10-25","2018-10-26","2018-10-27"]
[null,null,{"$f":"IF(WEEKDAY(DenKalendáře)=ZačátekTýdneHodnota,CONCATENATE(\"Týden \",WEEKNUM(DenKalendáře),\"/Den \",DenKalendáře-DATE(YEAR(DenKalendáře),1,0)),CONCATENATE(\"Den \",DenKalendáře-DATE(YEAR(DenKalendáře),1,0)))","v":"Týden 43/Den 294"},{"$f":"IF(WEEKDAY(DenKalendáře)=ZačátekTýdneHodnota,CONCATENATE(\"Týden \",WEEKNUM(DenKalendáře),\"/Den \",DenKalendáře-DATE(YEAR(DenKalendáře),1,0)),CONCATENATE(\"Den \",DenKalendáře-DATE(YEAR(DenKalendáře),1,0)))","v":"Den 295"},{"$f":"IF(WEEKDAY(DenKalendáře)=ZačátekTýdneHodnota,CONCATENATE(\"Týden \",WEEKNUM(DenKalendáře),\"/Den \",DenKalendáře-DATE(YEAR(DenKalendáře),1,0)),CONCATENATE(\"Den \",DenKalendáře-DATE(YEAR(DenKalendáře),1,0)))","v":"Den 296"},{"$f":"IF(WEEKDAY(DenKalendáře)=ZačátekTýdneHodnota,CONCATENATE(\"Týden \",WEEKNUM(DenKalendáře),\"/Den \",DenKalendáře-DATE(YEAR(DenKalendáře),1,0)),CONCATENATE(\"Den \",DenKalendáře-DATE(YEAR(DenKalendáře),1,0)))","v":"Den 297"},{"$f":"IF(WEEKDAY(DenKalendáře)=ZačátekTýdneHodnota,CONCATENATE(\"Týden \",WEEKNUM(DenKalendáře),\"/Den \",DenKalendáře-DATE(YEAR(DenKalendáře),1,0)),CONCATENATE(\"Den \",DenKalendáře-DATE(YEAR(DenKalendáře),1,0)))","v":"Den 298"},{"$f":"IF(WEEKDAY(DenKalendáře)=ZačátekTýdneHodnota,CONCATENATE(\"Týden \",WEEKNUM(DenKalendáře),\"/Den \",DenKalendáře-DATE(YEAR(DenKalendáře),1,0)),CONCATENATE(\"Den \",DenKalendáře-DATE(YEAR(DenKalendáře),1,0)))","v":"Den 299"},{"$f":"IF(WEEKDAY(DenKalendáře)=ZačátekTýdneHodnota,CONCATENATE(\"Týden \",WEEKNUM(DenKalendáře),\"/Den \",DenKalendáře-DATE(YEAR(DenKalendáře),1,0)),CONCATENATE(\"Den \",DenKalendáře-DATE(YEAR(DenKalendáře),1,0)))","v":"Den 300"}]
[]
[null,null,{"$f":"DnyATýdny+DATE(KalendářníRok,10,1)-WEEKDAY(DATE(KalendářníRok,10,1),(ZačátekTýdne=\"PO\")+1)+29","v":"2018-10-28"},"2018-10-29","2018-10-30","2018-10-31","2018-11-01","2018-11-02","2018-11-03"]
[null,null,{"$f":"IF(WEEKDAY(DenKalendáře)=ZačátekTýdneHodnota,CONCATENATE(\"Týden \",WEEKNUM(DenKalendáře),\"/Den \",DenKalendáře-DATE(YEAR(DenKalendáře),1,0)),CONCATENATE(\"Den \",DenKalendáře-DATE(YEAR(DenKalendáře),1,0)))","v":"Týden 44/Den 301"},{"$f":"IF(WEEKDAY(DenKalendáře)=ZačátekTýdneHodnota,CONCATENATE(\"Týden \",WEEKNUM(DenKalendáře),\"/Den \",DenKalendáře-DATE(YEAR(DenKalendáře),1,0)),CONCATENATE(\"Den \",DenKalendáře-DATE(YEAR(DenKalendáře),1,0)))","v":"Den 302"},{"$f":"IF(WEEKDAY(DenKalendáře)=ZačátekTýdneHodnota,CONCATENATE(\"Týden \",WEEKNUM(DenKalendáře),\"/Den \",DenKalendáře-DATE(YEAR(DenKalendáře),1,0)),CONCATENATE(\"Den \",DenKalendáře-DATE(YEAR(DenKalendáře),1,0)))","v":"Den 303"},{"$f":"IF(WEEKDAY(DenKalendáře)=ZačátekTýdneHodnota,CONCATENATE(\"Týden \",WEEKNUM(DenKalendáře),\"/Den \",DenKalendáře-DATE(YEAR(DenKalendáře),1,0)),CONCATENATE(\"Den \",DenKalendáře-DATE(YEAR(DenKalendáře),1,0)))","v":"Den 304"},{"$f":"IF(WEEKDAY(DenKalendáře)=ZačátekTýdneHodnota,CONCATENATE(\"Týden \",WEEKNUM(DenKalendáře),\"/Den \",DenKalendáře-DATE(YEAR(DenKalendáře),1,0)),CONCATENATE(\"Den \",DenKalendáře-DATE(YEAR(DenKalendáře),1,0)))","v":"Den 305"},{"$f":"IF(WEEKDAY(DenKalendáře)=ZačátekTýdneHodnota,CONCATENATE(\"Týden \",WEEKNUM(DenKalendáře),\"/Den \",DenKalendáře-DATE(YEAR(DenKalendáře),1,0)),CONCATENATE(\"Den \",DenKalendáře-DATE(YEAR(DenKalendáře),1,0)))","v":"Den 306"},{"$f":"IF(WEEKDAY(DenKalendáře)=ZačátekTýdneHodnota,CONCATENATE(\"Týden \",WEEKNUM(DenKalendáře),\"/Den \",DenKalendáře-DATE(YEAR(DenKalendáře),1,0)),CONCATENATE(\"Den \",DenKalendáře-DATE(YEAR(DenKalendáře),1,0)))","v":"Den 307"}]
[{"$nulls":4},"POZNÁMKY"]
[]
[null,null,{"$f":"DnyATýdny+DATE(KalendářníRok,10,1)-WEEKDAY(DATE(KalendářníRok,10,1),(ZačátekTýdne=\"PO\")+1)+36","v":"2018-11-04"},"2018-11-05"]
[null,null,{"$f":"IF(WEEKDAY(DenKalendáře)=ZačátekTýdneHodnota,CONCATENATE(\"Týden \",WEEKNUM(DenKalendáře),\"/Den \",DenKalendáře-DATE(YEAR(DenKalendáře),1,0)),CONCATENATE(\"Den \",DenKalendáře-DATE(YEAR(DenKalendáře),1,0)))","v":"Týden 45/Den 308"},{"$f":"IF(WEEKDAY(DenKalendáře)=ZačátekTýdneHodnota,CONCATENATE(\"Týden \",WEEKNUM(DenKalendáře),\"/Den \",DenKalendáře-DATE(YEAR(DenKalendáře),1,0)),CONCATENATE(\"Den \",DenKalendáře-DATE(YEAR(DenKalendáře),1,0)))","v":"Den 309"}]

{"sheet":"LISTOPAD","index":10,"n_rows":20,"n_cols":9,"rows_kept":20,"merged":[[16,2,17,2],[17,4,19,8]]}
[null,"LISTOPAD",{"$f":"UPPER(TEXT(ZačátekTýdne,\"ddd\"))","v":"NE"},{"$f":"UPPER(TEXT(D3,\"aaa\"))","v":"PO"},"ÚT","ST","ČT","PÁ","SO"]
[null,{"$f":"KalendářníRok","v":2018}]
[null,null,{"$f":"DnyATýdny+DATE(KalendářníRok,11,1)-WEEKDAY(DATE(KalendářníRok,11,1),(ZačátekTýdne=\"PO\")+1)+1","v":"2018-10-28"},"2018-10-29","2018-10-30","2018-10-31","2018-11-01","2018-11-02","2018-11-03"]
[null,null,{"$f":"IF(DAY(DenKalendáře)=1,CONCATENATE(\"Týden \",WEEKNUM(DenKalendáře),\"/Den \",DenKalendáře-DATE(YEAR(DenKalendáře),1,0)),CONCATENATE(\"Den \",DenKalendáře-DATE(YEAR(DenKalendáře),1,0)))","v":"Den 301"},{"$f":"IF(DAY(DenKalendáře)=1,CONCATENATE(\"Týden \",WEEKNUM(DenKalendáře),\"/Den \",DenKalendáře-DATE(YEAR(DenKalendáře),1,0)),CONCATENATE(\"Den \",DenKalendáře-DATE(YEAR(DenKalendáře),1,0)))","v":"Den 302"},{"$f":"IF(DAY(DenKalendáře)=1,CONCATENATE(\"Týden \",WEEKNUM(DenKalendáře),\"/Den \",DenKalendáře-DATE(YEAR(DenKalendáře),1,0)),CONCATENATE(\"Den \",DenKalendáře-DATE(YEAR(DenKalendáře),1,0)))","v":"Den 303"},{"$f":"IF(DAY(DenKalendáře)=1,CONCATENATE(\"Týden \",WEEKNUM(DenKalendáře),\"/Den \",DenKalendáře-DATE(YEAR(DenKalendáře),1,0)),CONCATENATE(\"Den \",DenKalendáře-DATE(YEAR(DenKalendáře),1,0)))","v":"Den 304"},{"$f":"IF(DAY(DenKalendáře)=1,CONCATENATE(\"Týden \",WEEKNUM(DenKalendáře),\"/Den \",DenKalendáře-DATE(YEAR(DenKalendáře),1,0)),CONCATENATE(\"Den \",DenKalendáře-DATE(YEAR(DenKalendáře),1,0)))","v":"Týden 44/Den 305"},{"$f":"IF(DAY(DenKalendáře)=1,CONCATENATE(\"Týden \",WEEKNUM(DenKalendáře),\"/Den \",DenKalendáře-DATE(YEAR(DenKalendáře),1,0)),CONCATENATE(\"Den \",DenKalendáře-DATE(YEAR(DenKalendáře),1,0)))","v":"Den 306"},{"$f":"IF(DAY(DenKalendáře)=1,CONCATENATE(\"Týden \",WEEKNUM(DenKalendáře),\"/Den \",DenKalendáře-DATE(YEAR(DenKalendáře),1,0)),CONCATENATE(\"Den \",DenKalendáře-DATE(YEAR(DenKalendáře),1,0)))","v":"Den 307"}]
[]
[null,null,{"$f":"DnyATýdny+DATE(KalendářníRok,11,1)-WEEKDAY(DATE(KalendářníRok,11,1),(ZačátekTýdne=\"PO\")+1)+8","v":"2018-11-04"},"2018-11-05","2018-11-06","2018-11-07","2018-11-08","2018-11-09","2018-11-10"]
[null,null,{"$f":"IF(WEEKDAY(DenKalendáře)=ZačátekTýdneHodnota,CONCATENATE(\"Týden \",WEEKNUM(DenKalendáře),\"/Den \",DenKalendáře-DATE(YEAR(DenKalendáře),1,0)),CONCATENATE(\"Den \",DenKalendáře-DATE(YEAR(DenKalendáře),1,0)))","v":"Týden 45/Den 308"},{"$f":"IF(WEEKDAY(DenKalendáře)=ZačátekTýdneHodnota,CONCATENATE(\"Týden \",WEEKNUM(DenKalendáře),\"/Den \",DenKalendáře-DATE(YEAR(DenKalendáře),1,0)),CONCATENATE(\"Den \",DenKalendáře-DATE(YEAR(DenKalendáře),1,0)))","v":"Den 309"},{"$f":"IF(WEEKDAY(DenKalendáře)=ZačátekTýdneHodnota,CONCATENATE(\"Týden \",WEEKNUM(DenKalendáře),\"/Den \",DenKalendáře-DATE(YEAR(DenKalendáře),1,0)),CONCATENATE(\"Den \",DenKalendáře-DATE(YEAR(DenKalendáře),1,0)))","v":"Den 310"},{"$f":"IF(WEEKDAY(DenKalendáře)=ZačátekTýdneHodnota,CONCATENATE(\"Týden \",WEEKNUM(DenKalendáře),\"/Den \",DenKalendáře-DATE(YEAR(DenKalendáře),1,0)),CONCATENATE(\"Den \",DenKalendáře-DATE(YEAR(DenKalendáře),1,0)))","v":"Den 311"},{"$f":"IF(WEEKDAY(DenKalendáře)=ZačátekTýdneHodnota,CONCATENATE(\"Týden \",WEEKNUM(DenKalendáře),\"/Den \",DenKalendáře-DATE(YEAR(DenKalendáře),1,0)),CONCATENATE(\"Den \",DenKalendáře-DATE(YEAR(DenKalendáře),1,0)))","v":"Den 312"},{"$f":"IF(WEEKDAY(DenKalendáře)=ZačátekTýdneHodnota,CONCATENATE(\"Týden \",WEEKNUM(DenKalendáře),\"/Den \",DenKalendáře-DATE(YEAR(DenKalendáře),1,0)),CONCATENATE(\"Den \",DenKalendáře-DATE(YEAR(DenKalendáře),1,0)))","v":"Den 313"},{"$f":"IF(WEEKDAY(DenKalendáře)=ZačátekTýdneHodnota,CONCATENATE(\"Týden \",WEEKNUM(DenKalendáře),\"/Den \",DenKalendáře-DATE(YEAR(DenKalendáře),1,0)),CONCATENATE(\"Den \",DenKalendáře-DATE(YEAR(DenKalendáře),1,0)))","v":"Den 314"}]
[]
[null,null,{"$f":"DnyATýdny+DATE(KalendářníRok,11,1)-WEEKDAY(DATE(KalendářníRok,11,1),(ZačátekTýdne=\"PO\")+1)+15","v":"2018-11-11"},"2018-11-12","2018-11-13","2018-11-14","2018-11-15","2018-11-16","2018-11-17"]
[null,null,{"$f":"IF(WEEKDAY(DenKalendáře)=ZačátekTýdneHodnota,CONCATENATE(\"Týden \",WEEKNUM(DenKalendáře),\"/Den \",DenKalendáře-DATE(YEAR(DenKalendáře),1,0)),CONCATENATE(\"Den \",DenKalendáře-DATE(YEAR(DenKalendáře),1,0)))","v":"Týden 46/Den 315"},{"$f":"IF(WEEKDAY(DenKalendáře)=ZačátekTýdneHodnota,CONCATENATE(\"Týden \",WEEKNUM(DenKalendáře),\"/Den \",DenKalendáře-DATE(YEAR(DenKalendáře),1,0)),CONCATENATE(\"Den \",DenKalendáře-DATE(YEAR(DenKalendáře),1,0)))","v":"Den 316"},{"$f":"IF(WEEKDAY(DenKalendáře)=ZačátekTýdneHodnota,CONCATENATE(\"Týden \",WEEKNUM(DenKalendáře),\"/Den \",DenKalendáře-DATE(YEAR(DenKalendáře),1,0)),CONCATENATE(\"Den \",DenKalendáře-DATE(YEAR(DenKalendáře),1,0)))","v":"Den 317"},{"$f":"IF(WEEKDAY(DenKalendáře)=ZačátekTýdneHodnota,CONCATENATE(\"Týden \",WEEKNUM(DenKalendáře),\"/Den \",DenKalendáře-DATE(YEAR(DenKalendáře),1,0)),CONCATENATE(\"Den \",DenKalendáře-DATE(YEAR(DenKalendáře),1,0)))","v":"Den 318"},{"$f":"IF(WEEKDAY(DenKalendáře)=ZačátekTýdneHodnota,CONCATENATE(\"Týden \",WEEKNUM(DenKalendáře),\"/Den \",DenKalendáře-DATE(YEAR(DenKalendáře),1,0)),CONCATENATE(\"Den \",DenKalendáře-DATE(YEAR(DenKalendáře),1,0)))","v":"Den 319"},{"$f":"IF(WEEKDAY(DenKalendáře)=ZačátekTýdneHodnota,CONCATENATE(\"Týden \",WEEKNUM(DenKalendáře),\"/Den \",DenKalendáře-DATE(YEAR(DenKalendáře),1,0)),CONCATENATE(\"Den \",DenKalendáře-DATE(YEAR(DenKalendáře),1,0)))","v":"Den 320"},{"$f":"IF(WEEKDAY(DenKalendáře)=ZačátekTýdneHodnota,CONCATENATE(\"Týden \",WEEKNUM(DenKalendáře),\"/Den \",DenKalendáře-DATE(YEAR(DenKalendáře),1,0)),CONCATENATE(\"Den \",DenKalendáře-DATE(YEAR(DenKalendáře),1,0)))","v":"Den 321"}]
[]
[null,null,{"$f":"DnyATýdny+DATE(KalendářníRok,11,1)-WEEKDAY(DATE(KalendářníRok,11,1),(ZačátekTýdne=\"PO\")+1)+22","v":"2018-11-18"},"2018-11-19","2018-11-20","2018-11-21","2018-11-22","2018-11-23","2018-11-24"]
[null,null,{"$f":"IF(WEEKDAY(DenKalendáře)=ZačátekTýdneHodnota,CONCATENATE(\"Týden \",WEEKNUM(DenKalendáře),\"/Den \",DenKalendáře-DATE(YEAR(DenKalendáře),1,0)),CONCATENATE(\"Den \",DenKalendáře-DATE(YEAR(DenKalendáře),1,0)))","v":"Týden 47/Den 322"},{"$f":"IF(WEEKDAY(DenKalendáře)=ZačátekTýdneHodnota,CONCATENATE(\"Týden \",WEEKNUM(DenKalendáře),\"/Den \",DenKalendáře-DATE(YEAR(DenKalendáře),1,0)),CONCATENATE(\"Den \",DenKalendáře-DATE(YEAR(DenKalendáře),1,0)))","v":"Den 323"},{"$f":"IF(WEEKDAY(DenKalendáře)=ZačátekTýdneHodnota,CONCATENATE(\"Týden \",WEEKNUM(DenKalendáře),\"/Den \",DenKalendáře-DATE(YEAR(DenKalendáře),1,0)),CONCATENATE(\"Den \",DenKalendáře-DATE(YEAR(DenKalendáře),1,0)))","v":"Den 324"},{"$f":"IF(WEEKDAY(DenKalendáře)=ZačátekTýdneHodnota,CONCATENATE(\"Týden \",WEEKNUM(DenKalendáře),\"/Den \",DenKalendáře-DATE(YEAR(DenKalendáře),1,0)),CONCATENATE(\"Den \",DenKalendáře-DATE(YEAR(DenKalendáře),1,0)))","v":"Den 325"},{"$f":"IF(WEEKDAY(DenKalendáře)=ZačátekTýdneHodnota,CONCATENATE(\"Týden \",WEEKNUM(DenKalendáře),\"/Den \",DenKalendáře-DATE(YEAR(DenKalendáře),1,0)),CONCATENATE(\"Den \",DenKalendáře-DATE(YEAR(DenKalendáře),1,0)))","v":"Den 326"},{"$f":"IF(WEEKDAY(DenKalendáře)=ZačátekTýdneHodnota,CONCATENATE(\"Týden \",WEEKNUM(DenKalendáře),\"/Den \",DenKalendáře-DATE(YEAR(DenKalendáře),1,0)),CONCATENATE(\"Den \",DenKalendáře-DATE(YEAR(DenKalendáře),1,0)))","v":"Den 327"},{"$f":"IF(WEEKDAY(DenKalendáře)=ZačátekTýdneHodnota,CONCATENATE(\"Týden \",WEEKNUM(DenKalendáře),\"/Den \",DenKalendáře-DATE(YEAR(DenKalendáře),1,0)),CONCATENATE(\"Den \",DenKalendáře-DATE(YEAR(DenKalendáře),1,0)))","v":"Den 328"}]
[]
[null,null,{"$f":"DnyATýdny+DATE(KalendářníRok,11,1)-WEEKDAY(DATE(KalendářníRok,11,1),(ZačátekTýdne=\"PO\")+1)+29","v":"2018-11-25"},"2018-11-26","2018-11-27","2018-11-28","2018-11-29","2018-11-30","2018-12-01"]
[null,null,{"$f":"IF(WEEKDAY(DenKalendáře)=ZačátekTýdneHodnota,CONCATENATE(\"Týden \",WEEKNUM(DenKalendáře),\"/Den \",DenKalendáře-DATE(YEAR(DenKalendáře),1,0)),CONCATENATE(\"Den \",DenKalendáře-DATE(YEAR(DenKalendáře),1,0)))","v":"Týden 48/Den 329"},{"$f":"IF(WEEKDAY(DenKalendáře)=ZačátekTýdneHodnota,CONCATENATE(\"Týden \",WEEKNUM(DenKalendáře),\"/Den \",DenKalendáře-DATE(YEAR(DenKalendáře),1,0)),CONCATENATE(\"Den \",DenKalendáře-DATE(YEAR(DenKalendáře),1,0)))","v":"Den 330"},{"$f":"IF(WEEKDAY(DenKalendáře)=ZačátekTýdneHodnota,CONCATENATE(\"Týden \",WEEKNUM(DenKalendáře),\"/Den \",DenKalendáře-DATE(YEAR(DenKalendáře),1,0)),CONCATENATE(\"Den \",DenKalendáře-DATE(YEAR(DenKalendáře),1,0)))","v":"Den 331"},{"$f":"IF(WEEKDAY(DenKalendáře)=ZačátekTýdneHodnota,CONCATENATE(\"Týden \",WEEKNUM(DenKalendáře),\"/Den \",DenKalendáře-DATE(YEAR(DenKalendáře),1,0)),CONCATENATE(\"Den \",DenKalendáře-DATE(YEAR(DenKalendáře),1,0)))","v":"Den 332"},{"$f":"IF(WEEKDAY(DenKalendáře)=ZačátekTýdneHodnota,CONCATENATE(\"Týden \",WEEKNUM(DenKalendáře),\"/Den \",DenKalendáře-DATE(YEAR(DenKalendáře),1,0)),CONCATENATE(\"Den \",DenKalendáře-DATE(YEAR(DenKalendáře),1,0)))","v":"Den 333"},{"$f":"IF(WEEKDAY(DenKalendáře)=ZačátekTýdneHodnota,CONCATENATE(\"Týden \",WEEKNUM(DenKalendáře),\"/Den \",DenKalendáře-DATE(YEAR(DenKalendáře),1,0)),CONCATENATE(\"Den \",DenKalendáře-DATE(YEAR(DenKalendáře),1,0)))","v":"Den 334"},{"$f":"IF(WEEKDAY(DenKalendáře)=ZačátekTýdneHodnota,CONCATENATE(\"Týden \",WEEKNUM(DenKalendáře),\"/Den \",DenKalendáře-DATE(YEAR(DenKalendáře),1,0)),CONCATENATE(\"Den \",DenKalendáře-DATE(YEAR(DenKalendáře),1,0)))","v":"Den 335"}]
[{"$nulls":4},"POZNÁMKY"]
[]
[null,null,{"$f":"DnyATýdny+DATE(KalendářníRok,11,1)-WEEKDAY(DATE(KalendářníRok,11,1),(ZačátekTýdne=\"PO\")+1)+36","v":"2018-12-02"},"2018-12-03"]
[null,null,{"$f":"IF(WEEKDAY(DenKalendáře)=ZačátekTýdneHodnota,CONCATENATE(\"Týden \",WEEKNUM(DenKalendáře),\"/Den \",DenKalendáře-DATE(YEAR(DenKalendáře),1,0)),CONCATENATE(\"Den \",DenKalendáře-DATE(YEAR(DenKalendáře),1,0)))","v":"Týden 49/Den 336"},{"$f":"IF(WEEKDAY(DenKalendáře)=ZačátekTýdneHodnota,CONCATENATE(\"Týden \",WEEKNUM(DenKalendáře),\"/Den \",DenKalendáře-DATE(YEAR(DenKalendáře),1,0)),CONCATENATE(\"Den \",DenKalendáře-DATE(YEAR(DenKalendáře),1,0)))","v":"Den 337"}]

{"sheet":"PROSINEC","index":11,"n_rows":20,"n_cols":9,"rows_kept":20,"merged":[[16,2,17,2],[17,4,19,8]]}
[null,"PROSINEC",{"$f":"UPPER(TEXT(ZačátekTýdne,\"ddd\"))","v":"NE"},{"$f":"UPPER(TEXT(D3,\"aaa\"))","v":"PO"},"ÚT","ST","ČT","PÁ","SO"]
[null,{"$f":"KalendářníRok","v":2018}]
[null,null,{"$f":"DnyATýdny+DATE(KalendářníRok,12,1)-WEEKDAY(DATE(KalendářníRok,12,1),(ZačátekTýdne=\"PO\")+1)+1","v":"2018-11-25"},"2018-11-26","2018-11-27","2018-11-28","2018-11-29","2018-11-30","2018-12-01"]
[null,null,{"$f":"IF(DAY(DenKalendáře)=1,CONCATENATE(\"Týden \",WEEKNUM(DenKalendáře),\"/Den \",DenKalendáře-DATE(YEAR(DenKalendáře),1,0)),CONCATENATE(\"Den \",DenKalendáře-DATE(YEAR(DenKalendáře),1,0)))","v":"Den 329"},{"$f":"IF(DAY(DenKalendáře)=1,CONCATENATE(\"Týden \",WEEKNUM(DenKalendáře),\"/Den \",DenKalendáře-DATE(YEAR(DenKalendáře),1,0)),CONCATENATE(\"Den \",DenKalendáře-DATE(YEAR(DenKalendáře),1,0)))","v":"Den 330"},{"$f":"IF(DAY(DenKalendáře)=1,CONCATENATE(\"Týden \",WEEKNUM(DenKalendáře),\"/Den \",DenKalendáře-DATE(YEAR(DenKalendáře),1,0)),CONCATENATE(\"Den \",DenKalendáře-DATE(YEAR(DenKalendáře),1,0)))","v":"Den 331"},{"$f":"IF(DAY(DenKalendáře)=1,CONCATENATE(\"Týden \",WEEKNUM(DenKalendáře),\"/Den \",DenKalendáře-DATE(YEAR(DenKalendáře),1,0)),CONCATENATE(\"Den \",DenKalendáře-DATE(YEAR(DenKalendáře),1,0)))","v":"Den 332"},{"$f":"IF(DAY(DenKalendáře)=1,CONCATENATE(\"Týden \",WEEKNUM(DenKalendáře),\"/Den \",DenKalendáře-DATE(YEAR(DenKalendáře),1,0)),CONCATENATE(\"Den \",DenKalendáře-DATE(YEAR(DenKalendáře),1,0)))","v":"Den 333"},{"$f":"IF(DAY(DenKalendáře)=1,CONCATENATE(\"Týden \",WEEKNUM(DenKalendáře),\"/Den \",DenKalendáře-DATE(YEAR(DenKalendáře),1,0)),CONCATENATE(\"Den \",DenKalendáře-DATE(YEAR(DenKalendáře),1,0)))","v":"Den 334"},{"$f":"IF(DAY(DenKalendáře)=1,CONCATENATE(\"Týden \",WEEKNUM(DenKalendáře),\"/Den \",DenKalendáře-DATE(YEAR(DenKalendáře),1,0)),CONCATENATE(\"Den \",DenKalendáře-DATE(YEAR(DenKalendáře),1,0)))","v":"Týden 48/Den 335"}]
[]
[null,null,{"$f":"DnyATýdny+DATE(KalendářníRok,12,1)-WEEKDAY(DATE(KalendářníRok,12,1),(ZačátekTýdne=\"PO\")+1)+8","v":"2018-12-02"},"2018-12-03","2018-12-04","2018-12-05","2018-12-06","2018-12-07","2018-12-08"]
[null,null,{"$f":"IF(WEEKDAY(DenKalendáře)=ZačátekTýdneHodnota,CONCATENATE(\"Týden \",WEEKNUM(DenKalendáře),\"/Den \",DenKalendáře-DATE(YEAR(DenKalendáře),1,0)),CONCATENATE(\"Den \",DenKalendáře-DATE(YEAR(DenKalendáře),1,0)))","v":"Týden 49/Den 336"},{"$f":"IF(WEEKDAY(DenKalendáře)=ZačátekTýdneHodnota,CONCATENATE(\"Týden \",WEEKNUM(DenKalendáře),\"/Den \",DenKalendáře-DATE(YEAR(DenKalendáře),1,0)),CONCATENATE(\"Den \",DenKalendáře-DATE(YEAR(DenKalendáře),1,0)))","v":"Den 337"},{"$f":"IF(WEEKDAY(DenKalendáře)=ZačátekTýdneHodnota,CONCATENATE(\"Týden \",WEEKNUM(DenKalendáře),\"/Den \",DenKalendáře-DATE(YEAR(DenKalendáře),1,0)),CONCATENATE(\"Den \",DenKalendáře-DATE(YEAR(DenKalendáře),1,0)))","v":"Den 338"},{"$f":"IF(WEEKDAY(DenKalendáře)=ZačátekTýdneHodnota,CONCATENATE(\"Týden \",WEEKNUM(DenKalendáře),\"/Den \",DenKalendáře-DATE(YEAR(DenKalendáře),1,0)),CONCATENATE(\"Den \",DenKalendáře-DATE(YEAR(DenKalendáře),1,0)))","v":"Den 339"},{"$f":"IF(WEEKDAY(DenKalendáře)=ZačátekTýdneHodnota,CONCATENATE(\"Týden \",WEEKNUM(DenKalendáře),\"/Den \",DenKalendáře-DATE(YEAR(DenKalendáře),1,0)),CONCATENATE(\"Den \",DenKalendáře-DATE(YEAR(DenKalendáře),1,0)))","v":"Den 340"},{"$f":"IF(WEEKDAY(DenKalendáře)=ZačátekTýdneHodnota,CONCATENATE(\"Týden \",WEEKNUM(DenKalendáře),\"/Den \",DenKalendáře-DATE(YEAR(DenKalendáře),1,0)),CONCATENATE(\"Den \",DenKalendáře-DATE(YEAR(DenKalendáře),1,0)))","v":"Den 341"},{"$f":"IF(WEEKDAY(DenKalendáře)=ZačátekTýdneHodnota,CONCATENATE(\"Týden \",WEEKNUM(DenKalendáře),\"/Den \",DenKalendáře-DATE(YEAR(DenKalendáře),1,0)),CONCATENATE(\"Den \",DenKalendáře-DATE(YEAR(DenKalendáře),1,0)))","v":"Den 342"}]
[]
[null,null,{"$f":"DnyATýdny+DATE(KalendářníRok,12,1)-WEEKDAY(DATE(KalendářníRok,12,1),(ZačátekTýdne=\"PO\")+1)+15","v":"2018-12-09"},"2018-12-10","2018-12-11","2018-12-12","2018-12-13","2018-12-14","2018-12-15"]
[null,null,{"$f":"IF(WEEKDAY(DenKalendáře)=ZačátekTýdneHodnota,CONCATENATE(\"Týden \",WEEKNUM(DenKalendáře),\"/Den \",DenKalendáře-DATE(YEAR(DenKalendáře),1,0)),CONCATENATE(\"Den \",DenKalendáře-DATE(YEAR(DenKalendáře),1,0)))","v":"Týden 50/Den 343"},{"$f":"IF(WEEKDAY(DenKalendáře)=ZačátekTýdneHodnota,CONCATENATE(\"Týden \",WEEKNUM(DenKalendáře),\"/Den \",DenKalendáře-DATE(YEAR(DenKalendáře),1,0)),CONCATENATE(\"Den \",DenKalendáře-DATE(YEAR(DenKalendáře),1,0)))","v":"Den 344"},{"$f":"IF(WEEKDAY(DenKalendáře)=ZačátekTýdneHodnota,CONCATENATE(\"Týden \",WEEKNUM(DenKalendáře),\"/Den \",DenKalendáře-DATE(YEAR(DenKalendáře),1,0)),CONCATENATE(\"Den \",DenKalendáře-DATE(YEAR(DenKalendáře),1,0)))","v":"Den 345"},{"$f":"IF(WEEKDAY(DenKalendáře)=ZačátekTýdneHodnota,CONCATENATE(\"Týden \",WEEKNUM(DenKalendáře),\"/Den \",DenKalendáře-DATE(YEAR(DenKalendáře),1,0)),CONCATENATE(\"Den \",DenKalendáře-DATE(YEAR(DenKalendáře),1,0)))","v":"Den 346"},{"$f":"IF(WEEKDAY(DenKalendáře)=ZačátekTýdneHodnota,CONCATENATE(\"Týden \",WEEKNUM(DenKalendáře),\"/Den \",DenKalendáře-DATE(YEAR(DenKalendáře),1,0)),CONCATENATE(\"Den \",DenKalendáře-DATE(YEAR(DenKalendáře),1,0)))","v":"Den 347"},{"$f":"IF(WEEKDAY(DenKalendáře)=ZačátekTýdneHodnota,CONCATENATE(\"Týden \",WEEKNUM(DenKalendáře),\"/Den \",DenKalendáře-DATE(YEAR(DenKalendáře),1,0)),CONCATENATE(\"Den \",DenKalendáře-DATE(YEAR(DenKalendáře),1,0)))","v":"Den 348"},{"$f":"IF(WEEKDAY(DenKalendáře)=ZačátekTýdneHodnota,CONCATENATE(\"Týden \",WEEKNUM(DenKalendáře),\"/Den \",DenKalendáře-DATE(YEAR(DenKalendáře),1,0)),CONCATENATE(\"Den \",DenKalendáře-DATE(YEAR(DenKalendáře),1,0)))","v":"Den 349"}]
[]
[null,null,{"$f":"DnyATýdny+DATE(KalendářníRok,12,1)-WEEKDAY(DATE(KalendářníRok,12,1),(ZačátekTýdne=\"PO\")+1)+22","v":"2018-12-16"},"2018-12-17","2018-12-18","2018-12-19","2018-12-20","2018-12-21","2018-12-22"]
[null,null,{"$f":"IF(WEEKDAY(DenKalendáře)=ZačátekTýdneHodnota,CONCATENATE(\"Týden \",WEEKNUM(DenKalendáře),\"/Den \",DenKalendáře-DATE(YEAR(DenKalendáře),1,0)),CONCATENATE(\"Den \",DenKalendáře-DATE(YEAR(DenKalendáře),1,0)))","v":"Týden 51/Den 350"},{"$f":"IF(WEEKDAY(DenKalendáře)=ZačátekTýdneHodnota,CONCATENATE(\"Týden \",WEEKNUM(DenKalendáře),\"/Den \",DenKalendáře-DATE(YEAR(DenKalendáře),1,0)),CONCATENATE(\"Den \",DenKalendáře-DATE(YEAR(DenKalendáře),1,0)))","v":"Den 351"},{"$f":"IF(WEEKDAY(DenKalendáře)=ZačátekTýdneHodnota,CONCATENATE(\"Týden \",WEEKNUM(DenKalendáře),\"/Den \",DenKalendáře-DATE(YEAR(DenKalendáře),1,0)),CONCATENATE(\"Den \",DenKalendáře-DATE(YEAR(DenKalendáře),1,0)))","v":"Den 352"},{"$f":"IF(WEEKDAY(DenKalendáře)=ZačátekTýdneHodnota,CONCATENATE(\"Týden \",WEEKNUM(DenKalendáře),\"/Den \",DenKalendáře-DATE(YEAR(DenKalendáře),1,0)),CONCATENATE(\"Den \",DenKalendáře-DATE(YEAR(DenKalendáře),1,0)))","v":"Den 353"},{"$f":"IF(WEEKDAY(DenKalendáře)=ZačátekTýdneHodnota,CONCATENATE(\"Týden \",WEEKNUM(DenKalendáře),\"/Den \",DenKalendáře-DATE(YEAR(DenKalendáře),1,0)),CONCATENATE(\"Den \",DenKalendáře-DATE(YEAR(DenKalendáře),1,0)))","v":"Den 354"},{"$f":"IF(WEEKDAY(DenKalendáře)=ZačátekTýdneHodnota,CONCATENATE(\"Týden \",WEEKNUM(DenKalendáře),\"/Den \",DenKalendáře-DATE(YEAR(DenKalendáře),1,0)),CONCATENATE(\"Den \",DenKalendáře-DATE(YEAR(DenKalendáře),1,0)))","v":"Den 355"},{"$f":"IF(WEEKDAY(DenKalendáře)=ZačátekTýdneHodnota,CONCATENATE(\"Týden \",WEEKNUM(DenKalendáře),\"/Den \",DenKalendáře-DATE(YEAR(DenKalendáře),1,0)),CONCATENATE(\"Den \",DenKalendáře-DATE(YEAR(DenKalendáře),1,0)))","v":"Den 356"}]
[]
[null,null,{"$f":"DnyATýdny+DATE(KalendářníRok,12,1)-WEEKDAY(DATE(KalendářníRok,12,1),(ZačátekTýdne=\"PO\")+1)+29","v":"2018-12-23"},"2018-12-24","2018-12-25","2018-12-26","2018-12-27","2018-12-28","2018-12-29"]
[null,null,{"$f":"IF(WEEKDAY(DenKalendáře)=ZačátekTýdneHodnota,CONCATENATE(\"Týden \",WEEKNUM(DenKalendáře),\"/Den \",DenKalendáře-DATE(YEAR(DenKalendáře),1,0)),CONCATENATE(\"Den \",DenKalendáře-DATE(YEAR(DenKalendáře),1,0)))","v":"Týden 52/Den 357"},{"$f":"IF(WEEKDAY(DenKalendáře)=ZačátekTýdneHodnota,CONCATENATE(\"Týden \",WEEKNUM(DenKalendáře),\"/Den \",DenKalendáře-DATE(YEAR(DenKalendáře),1,0)),CONCATENATE(\"Den \",DenKalendáře-DATE(YEAR(DenKalendáře),1,0)))","v":"Den 358"},{"$f":"IF(WEEKDAY(DenKalendáře)=ZačátekTýdneHodnota,CONCATENATE(\"Týden \",WEEKNUM(DenKalendáře),\"/Den \",DenKalendáře-DATE(YEAR(DenKalendáře),1,0)),CONCATENATE(\"Den \",DenKalendáře-DATE(YEAR(DenKalendáře),1,0)))","v":"Den 359"},{"$f":"IF(WEEKDAY(DenKalendáře)=ZačátekTýdneHodnota,CONCATENATE(\"Týden \",WEEKNUM(DenKalendáře),\"/Den \",DenKalendáře-DATE(YEAR(DenKalendáře),1,0)),CONCATENATE(\"Den \",DenKalendáře-DATE(YEAR(DenKalendáře),1,0)))","v":"Den 360"},{"$f":"IF(WEEKDAY(DenKalendáře)=ZačátekTýdneHodnota,CONCATENATE(\"Týden \",WEEKNUM(DenKalendáře),\"/Den \",DenKalendáře-DATE(YEAR(DenKalendáře),1,0)),CONCATENATE(\"Den \",DenKalendáře-DATE(YEAR(DenKalendáře),1,0)))","v":"Den 361"},{"$f":"IF(WEEKDAY(DenKalendáře)=ZačátekTýdneHodnota,CONCATENATE(\"Týden \",WEEKNUM(DenKalendáře),\"/Den \",DenKalendáře-DATE(YEAR(DenKalendáře),1,0)),CONCATENATE(\"Den \",DenKalendáře-DATE(YEAR(DenKalendáře),1,0)))","v":"Den 362"},{"$f":"IF(WEEKDAY(DenKalendáře)=ZačátekTýdneHodnota,CONCATENATE(\"Týden \",WEEKNUM(DenKalendáře),\"/Den \",DenKalendáře-DATE(YEAR(DenKalendáře),1,0)),CONCATENATE(\"Den \",DenKalendáře-DATE(YEAR(DenKalendáře),1,0)))","v":"Den 363"}]
[{"$nulls":4},"POZNÁMKY"]
[]
[null,null,{"$f":"DnyATýdny+DATE(KalendářníRok,12,1)-WEEKDAY(DATE(KalendářníRok,12,1),(ZačátekTýdne=\"PO\")+1)+36","v":"2018-12-30"},"2018-12-31"]
[null,null,{"$f":"IF(WEEKDAY(DenKalendáře)=ZačátekTýdneHodnota,CONCATENATE(\"Týden \",WEEKNUM(DenKalendáře),\"/Den \",DenKalendáře-DATE(YEAR(DenKalendáře),1,0)),CONCATENATE(\"Den \",DenKalendáře-DATE(YEAR(DenKalendáře),1,0)))","v":"Týden 53/Den 364"},{"$f":"IF(WEEKDAY(DenKalendáře)=ZačátekTýdneHodnota,CONCATENATE(\"Týden \",WEEKNUM(DenKalendáře),\"/Den \",DenKalendáře-DATE(YEAR(DenKalendáře),1,0)),CONCATENATE(\"Den \",DenKalendáře-DATE(YEAR(DenKalendáře),1,0)))","v":"Den 365"}]